{"text_format":"1","workbook":"xlsx","n_sheets":8,"sheets":["CALENDARIO 2015 - 1","CALENDARIO 2015-2","RCatalão","RGoiânia - Sam e Col","RGoiânia - CAP","RGoiás","RJataí","Resumo"],"not_rendered":{"charts":0,"images":0,"macros":1,"external_links":0,"defined_names":1,"comments":0,"pivot_tables":0},"unopened":[],"bounds":{"document_bytes":16777216,"sheet_cells":100000,"rows_first":2000,"rows_last":500,"rows_between":2000,"halvings":0,"cell_chars":16384,"cell_head_chars":4096},"cells_cut":0,"cells_raw":0,"read":"whole","date_system":"1900"}

{"sheet":"CALENDARIO 2015 - 1","index":0,"n_rows":91,"n_cols":21,"rows_kept":91,"cut":false,"hidden":true,"merged":[[74,3,74,4],[74,13,74,14],[59,10,59,17],[60,3,60,4],[60,13,60,14],[62,0,62,7],[62,10,62,17],[71,0,71,7],[46,2,46,3],[46,13,46,14],[50,0,50,7],[50,10,50,17],[48,2,48,3],[78,2,78,3],[34,2,34,3],[1,0,1,17],[3,0,3,7],[3,10,3,17],[12,1,12,2],[12,12,12,13],[13,0,13,7],[13,10,13,17],[22,2,22,3],[22,12,22,13],[24,0,24,7],[24,10,24,17],[33,10,33,17],[36,0,36,7],[36,10,36,17]]}
[]
["Calendário 2015"]
[]
["Janeiro",null,null,null,null,null,null,null,null,null,"Fevereiro"]
["Sem","Dom","Seg","Ter","Qua","Qui","Sex","Sáb",null,null,"Sem","Dom","Seg","Ter","Qua","Qui","Sex","Sáb"]
[1,null,null,null,null,1,2,3,null,null,6,1,2,3,4,5,6,7]
[2,4,5,6,7,8,9,10,null,null,7,8,9,10,11,12,13,14]
[3,11,12,13,14,15,16,17,null,null,8,15,16,17,18,19,20,21]
[4,18,19,20,21,22,23,24,null,null,9,22,23,24,25,26,27,28]
[5,25,26,27,28,29,30,31,null,null,null,null,{"$f":"gfCountIfColor(M6:M9,$B$7)","v":{"$error":"#NAME?"}},{"$error":"#NAME?"},{"$error":"#NAME?"},{"$error":"#NAME?"},{"$error":"#NAME?"},{"$error":"#NAME?"},{"$f":"SUM(M10:R10)","v":{"$error":"#NAME?"}}]
[null,null,null,null,null,null,null,null,null,null,"23: primeiro dia de aula"]
["1: Confraternização universal",null,null,null,null,null,null,null,null,null,"17: Carnaval"]
[null,"Dias Letivos: ",null,{"$f":"SUM(C11:H11)","v":0},null,null,null,null,null,null,null,null,"Dias Letivos: ",null,{"$f":"gfCountIfColor(M9:R9,M9)","v":{"$error":"#NAME?"}}]
["Março",null,null,null,null,null,null,null,null,null,"Abril"]
["Sem","Dom","Seg","Ter","Qua","Qui","Sex","Sáb",null,null,"Sem","Dom","Seg","Ter","Qua","Qui","Sex","Sáb"]
[1,1,2,3,4,5,6,7,null,null,5,null,null,null,1,2,3,4]
[2,8,9,10,11,12,13,14,null,null,6,5,6,7,8,9,10,11]
[3,15,16,17,18,19,20,21,null,null,7,12,13,14,15,16,17,18]
[4,22,23,24,25,26,27,28,null,null,8,19,20,21,22,23,24,25]
[5,29,30,31,null,null,null,null,null,null,9,26,27,28,29,30]
[null,null,{"$f":"gfCountIfColor(C16:C20,$B$7)","v":{"$error":"#NAME?"}},{"$error":"#NAME?"},{"$error":"#NAME?"},{"$error":"#NAME?"},{"$error":"#NAME?"},{"$error":"#NAME?"},{"$f":"SUM(C21:H21)","v":{"$error":"#NAME?"}},null,null,null,{"$f":"gfCountIfColor(M16:M20,$B$7)","v":{"$error":"#NAME?"}},{"$error":"#NAME?"},{"$error":"#NAME?"},{"$error":"#NAME?"},{"$error":"#NAME?"},{"$error":"#NAME?"},{"$f":"SUM(M21:R21)","v":{"$error":"#NAME?"}}]
["8: Dia Internacional da Mulher",null,null,null,null,null,null,null,null,null,"3: Paixão de Cristo",null,null,"21: Tiradentes",null,"19: Dia do Índio",null,"22: Descobrimento do Brasil",null,null,"5: Páscoa"]
[null,null,"Dias Letivos: ",null,{"$f":"gfCountIfColor(C16:H20,$B$7)","v":{"$error":"#NAME?"}},null,null,null,null,null,null,null,"Dias Letivos: ",null,{"$f":"gfCountIfColor(M16:R20,$B$7)","v":{"$error":"#NAME?"}}]
[]
["Maio",null,null,null,null,null,null,null,null,null,"Junho"]
["Sem","Dom","Seg","Ter","Qua","Qui","Sex","Sáb",null,null,"Sem","Dom","Seg","Ter","Qua","Qui","Sex","Sáb"]
[9,null,null,null,null,null,1,2,null,null,14,null,1,2,3,4,5,6]
[10,3,4,5,6,7,8,9,null,null,15,7,8,9,10,11,12,13]
[11,10,11,12,13,14,15,16,null,null,16,14,15,16,17,18,19,20]
[12,17,18,19,20,21,22,23,null,null,17,21,22,23,24,25,26,27]
[13,24,25,26,27,28,29,30,null,null,18,28,29,30]
[14,31,null,null,null,null,null,null,null,null,null,null,{"$f":"gfCountIfColor(M27:M31,$B$7)","v":{"$error":"#NAME?"}},{"$error":"#NAME?"},{"$error":"#NAME?"},{"$error":"#NAME?"},{"$error":"#NAME?"},{"$error":"#NAME?"},{"$f":"SUM(M32:R32)","v":{"$error":"#NAME?"}}]
[null,null,{"$f":"gfCountIfColor(C27:C32,$B$7)","v":{"$error":"#NAME?"}},{"$error":"#NAME?"},{"$error":"#NAME?"},{"$error":"#NAME?"},{"$error":"#NAME?"},{"$error":"#NAME?"},{"$f":"SUM(C33:H33)","v":{"$error":"#NAME?"}}]
["10: Dia das mães",null,null,"1: Dia do Trabalho",null,null,"2 recesso academico",null,null,null,"4: Corpus Christi"]
[null,null,"Dias Letivos: ",null,{"$f":"gfCountIfColor(C27:H31,$B$7)","v":{"$error":"#NAME?"}},null,null,null,null,null,null,null,"Dias Letivos: ",null,{"$f":"gfCountIfColor(M27:R31,$B$7)","v":{"$error":"#NAME?"}}]
[]
["Julho"]
["Sem","Dom","Seg","Ter","Qua","Qui","Sex","Sáb"]
[18,null,null,null,1,2,3,4]
[null,5,6,7,8,9,10,11]
[null,12,13,14,15,16,17,18]
[null,19,20,21,22,23,24,25]
[null,26,27,28,29,30,31]
[null,null,{"$f":"gfCountIfColor(C39:C43,$B$7)","v":{"$error":"#NAME?"}},{"$error":"#NAME?"},{"$error":"#NAME?"},{"$error":"#NAME?"},{"$error":"#NAME?"},{"$error":"#NAME?"}]
[null,null,null,null,"1: último dia de aula",null,null,null,null,null,null,null,null,null,null,null,null,null,{"$f":"SUM(M45:R45)","v":0}]
[]
[null,null,"Dias Letivos: ",null,{"$f":"SUM(C44:H44)","v":{"$error":"#NAME?"}}]
[null,null,null,null,null,null,null,"Dias Letivos 1-2015",null,null,{"$f":"SUM(E23,O23,E35,O35,E47)","v":{"$error":"#NAME?"}}]
[null,null,"Semanas",null,"Seg",{"$f":"SUM(C21,M21,C33,M32,C44,M10)","v":{"$error":"#NAME?"}},"Ter",{"$f":"SUM(D21,N21,D33,N32,E44,N10)","v":{"$error":"#NAME?"}},"Qua",{"$f":"SUM(E21,O21,E33,O32,G44,O10)","v":{"$error":"#NAME?"}},"Qui",{"$f":"SUM(F21,P21,F33,P32,F44)","v":{"$error":"#NAME?"}},"Sex",{"$f":"SUM(G21,Q21,G33,Q32,G44)","v":{"$error":"#NAME?"}},"Sab",{"$f":"SUM(H21,R21,R32,W32,H44,R10)","v":{"$error":"#NAME?"}}]
[null,null,null,null,null,null,null,null,null,{"$f":"SUM(F49,H49,J49,L49,N49,P49)","v":{"$error":"#NAME?"}}]
[]
[]
[]
[]
[]
[]
[]
[null,null,null,null,null,null,null,null,null,null,null,null,null,null,null,null,null,null,{"$f":"SUM(M58:R58)","v":0}]
[]
[]
[]
[]
[]
[]
[]
[]
[]
[]
[]
[null,null,null,null,null,null,null,null,null,null,null,null,null,null,null,null,null,null,{"$f":"SUM(M70:R70)","v":0}]
[]
[]
[]
[]
[]
[]
[]
[]
[]
[]
[]
[]
[]
[]
["3 "]
[]
["11 "]
[]
["18 "]
[]
["25 "]

{"sheet":"CALENDARIO 2015-2","index":1,"n_rows":58,"n_cols":19,"rows_kept":58,"cut":false,"hidden":true,"merged":[[1,0,1,17],[4,0,4,7],[5,0,5,7],[15,3,15,4],[5,10,5,17],[15,13,15,14],[16,0,16,7],[28,13,28,14],[40,2,40,3],[45,2,45,3],[25,0,25,7],[26,3,26,4],[16,10,16,17],[29,0,29,7],[25,10,25,17]]}
[]
["Calendário 2015"]
[]
[]
[]
["Agosto",null,null,null,null,null,null,null,null,null,"Setembro"]
["Sem","Dom","Seg","Ter","Qua","Qui","Sex","Sáb",null,null,"Sem","Dom","Seg","Ter","Qua","Qui","Sex","Sáb"]
[null,null,null,null,null,null,null,1,null,null,4,null,null,1,2,3,4,5]
[null,2,3,4,5,6,7,8,null,null,5,6,7,8,9,10,11,12]
[1,9,10,11,12,13,14,15,null,null,6,13,14,15,16,17,18,19]
[2,16,17,18,19,20,21,22,null,null,7,20,21,22,23,24,25,26]
[3,23,24,25,26,27,28,29,null,null,8,27,28,29,30]
[4,30,31,null,null,null,null,null,null,null,null,null,{"$f":"gfCountIfColor(M8:M12,$B$3)","v":{"$error":"#NAME?"}},{"$error":"#NAME?"},{"$error":"#NAME?"},{"$error":"#NAME?"},{"$error":"#NAME?"},{"$error":"#NAME?"},{"$f":"SUM(C14:H14)","v":{"$error":"#NAME?"}}]
[null,null,{"$f":"gfCountIfColor(C8:C13,$B$3)","v":{"$error":"#NAME?"}},{"$error":"#NAME?"},{"$error":"#NAME?"},{"$error":"#NAME?"},{"$error":"#NAME?"},{"$error":"#NAME?"},null,null,"7: Independência do Brasil"]
[null,null,null,"3: Primeiro dia de aula",null,null,null,null,null,null,"22: Início da primavera"]
[null,null,null,"Dias Letivos: ",null,{"$f":"gfCountIfColor(C8:H13,$B$3)","v":{"$error":"#NAME?"}},null,null,null,null,null,null,null,"Dias Letivos: ",null,{"$f":"gfCountIfColor(M8:R12,$B$3)","v":{"$error":"#NAME?"}}]
["Outubro",null,null,null,null,null,null,null,null,null,"Novembro"]
["Sem","Dom","Seg","Ter","Qua","Qui","Sex","Sáb",null,null,"Sem","Dom","Seg","Ter","Qua","Qui","Sex","Sáb"]
[8,null,null,null,null,1,2,3,null,null,13,1,2,3,4,5,6,7]
[9,4,5,6,7,8,9,10,null,null,14,8,9,10,11,12,13,14]
[10,11,12,13,14,15,16,17,null,null,15,15,16,17,18,19,20,21]
[11,18,19,20,21,22,23,24,null,null,16,22,23,24,25,26,27,28]
[12,25,26,27,28,29,30,31,null,null,17,29,30]
[null,null,{"$f":"gfCountIfColor(C19:C23,$B$3)","v":{"$error":"#NAME?"}},{"$error":"#NAME?"},{"$error":"#NAME?"},{"$error":"#NAME?"},{"$error":"#NAME?"},{"$error":"#NAME?"},{"$f":"SUM(M13:R13)","v":{"$error":"#NAME?"}},null,null,null,{"$f":"gfCountIfColor(M19:M23,$B$3)","v":{"$error":"#NAME?"}},{"$error":"#NAME?"},{"$error":"#NAME?"},{"$error":"#NAME?"},{"$error":"#NAME?"},{"$error":"#NAME?"},{"$f":"SUM(C24:H24)","v":{"$error":"#NAME?"}}]
["18: Início do horário de verão",null,null,null,"12: Nsa. Sra. Aparecida",null,null,"15: Dia dos Professores",null,null,"2: Finados"]
[null,null,null,null,null,null,null,null,null,null,"15: Proclamação da República"]
[null,null,null,"Dias Letivos: ",null,{"$f":"gfCountIfColor(C19:H23,$B$3)","v":{"$error":"#NAME?"}},null,null,null,null,"19: Dia da Bandeira"]
[null,null,null,null,null,null,null,null,null,null,"20: Dia da Consciência Negra"]
[null,null,null,null,null,null,null,null,null,null,null,null,null,"Dias Letivos: ",null,{"$f":"gfCountIfColor(M19:R23,$B$3)","v":{"$error":"#NAME?"}}]
["Dezembro"]
["Sem","Dom","Seg","Ter","Qua","Qui","Sex","Sáb"]
[17,null,null,1,2,3,4,5]
[18,6,7,8,9,10,11,12]
[19,13,14,15,16,17,18,19]
[null,20,21,22,23,24,25,26]
[null,27,28,29,30,31]
[null,null,{"$f":"gfCountIfColor(C32:C36,$B$3)","v":{"$error":"#NAME?"}},{"$error":"#NAME?"},{"$error":"#NAME?"},{"$error":"#NAME?"},{"$error":"#NAME?"},{"$error":"#NAME?"},{"$f":"SUM(M24:R24)","v":{"$error":"#NAME?"}},null,null,null,null,null,null,null,null,null,{"$f":"SUM(C37:H37)","v":{"$error":"#NAME?"}}]
["21: Início do verão"]
["25: Natal",null,"14: Último dia de aula"]
[]
[null,null,"Dias Letivos: ",null,{"$f":"gfCountIfColor(C32:H36,$B$3)","v":{"$error":"#NAME?"}}]
[]
[]
[null,null,null,null,null,null,null,null,"Dias Letivos 2-2015",null,{"$f":"SUM(F16,P16,F27,P29,E41)","v":{"$error":"#NAME?"}}]
[]
[null,null,"Semanas",null,"Seg",{"$f":"SUM(C14,M13,C24,M24,C37)","v":{"$error":"#NAME?"}},"Ter",{"$f":"SUM(D14,N13,D24,N24,D37)","v":{"$error":"#NAME?"}},"Qua",{"$f":"SUM(E14,O13,E24,O24,E37)","v":{"$error":"#NAME?"}},"Qui",{"$f":"SUM(F14,P13,F24,P24,F37)","v":{"$error":"#NAME?"}},"Sex",{"$f":"SUM(G14,Q13,G24,Q24,G37)","v":{"$error":"#NAME?"}},"Sab",{"$f":"SUM(H14,R13,H24,R24,H37)","v":{"$error":"#NAME?"}}]
[]
[null,null,null,null,null,null,null,null,null,"total",{"$f":"SUM(F46,H46,J46,L46,N46,P46)","v":{"$error":"#NAME?"}}]
[]
[]
[]
["3 "]
[]
["11 "]
[]
["18 "]
[]
["25 "]

{"sheet":"RCatalão","index":2,"n_rows":102,"n_cols":22,"rows_kept":102,"cut":false,"hidden":false,"merged":[[87,1,87,8],[87,13,87,20],[95,1,95,8],[77,27,77,28],[53,1,53,8],[53,13,53,20],[64,1,64,8],[64,13,64,20],[75,1,75,8],[76,13,76,20],[51,1,51,22],[0,1,0,22],[2,1,2,8],[2,13,2,20],[11,1,11,8],[11,13,11,20],[22,1,22,8],[22,13,22,20],[34,1,34,8],[34,13,34,20],[43,6,43,7],[46,3,46,10]]}
[null,"Calendário 2017-1 - Regional Catalão"]
[]
[null,"Janeiro",null,null,null,null,null,null,null,null,null,null,null,"Fevereiro"]
[null,"Sem","Dom","Seg","Ter","Qua","Qui","Sex","Sáb",null,null,null,null,"Sem","Dom","Seg","Ter","Qua","Qui","Sex","Sáb"]
[null,null,1,2,3,4,5,6,7,"01: Confraternização universal",null,null,null,null,null,null,null,1,2,3,4]
[null,null,8,9,10,11,12,13,14,null,null,null,null,null,5,6,7,8,9,10,11]
[null,null,15,16,17,18,19,20,21,null,null,null,null,null,12,13,14,15,16,17,18]
[null,null,22,23,24,25,26,27,28,null,null,null,null,null,19,20,21,22,23,24,25]
[null,null,29,30,31,null,null,null,null,null,null,null,null,null,26,27,28,null,null,null,null,"28: Carnaval"]
[]
[]
[null,"Março",null,null,null,null,null,null,null,null,null,null,null,"Abril"]
[null,"Sem","Dom","Seg","Ter","Qua","Qui","Sex","Sáb",null,null,null,null,"Sem","Dom","Seg","Ter","Qua","Qui","Sex","Sáb"]
[null,null,null,null,null,1,2,3,4,null,null,null,null,null,null,null,null,null,null,null,1]
[null,null,5,6,7,8,9,10,11,null,null,null,null,4,2,3,4,5,6,7,8]
[null,1,12,13,14,15,16,17,18,"13: Início de 2017-1",null,null," ",5,9,10,11,12,13,14,15,"14: Paixão de Cristo"]
[null,2,19,20,21,22,23,24,25,null,null,null,null,6,16,17,18,19,20,21,22,"21: Tiradentes"]
[null,3,26,27,28,29,30,31,null,null,null,null,null,7,23,24,25,26,27,28,29,"15 e 22: Recesso"]
[null,null,null,null,null,null,null,null,null,null,null,null,null,null,30]
[null,"Dias Semana",null,{"$f":"gfCountIfColor(D15:D18,$B$2)","v":{"$error":"#NAME?"}},{"$error":"#NAME?"},{"$f":"gfCountIfColor(F15:F18,$B$2)","v":{"$error":"#NAME?"}},{"$error":"#NAME?"},{"$error":"#NAME?"},{"$f":"gfCountIfColor(I15:I18,$B$2)","v":{"$error":"#NAME?"}},null,null,null,null,"Dias Semana",null,{"$f":"gfCountIfColor(P15:P18,$B$2)","v":{"$error":"#NAME?"}},{"$f":"gfCountIfColor(Q15:Q18,$B$2)","v":{"$error":"#NAME?"}},{"$error":"#NAME?"},{"$error":"#NAME?"},{"$f":"gfCountIfColor(T14:T18,$B$2)","v":{"$error":"#NAME?"}},{"$f":"gfCountIfColor(U14:U18,$B$2)","v":{"$error":"#NAME?"}}]
[null,"Dias Letivos",null,null,{"$f":"gfCountIfColor(D14:I18,$B$2)","v":{"$error":"#NAME?"}},null,"Parcial",null,{"$f":"SUM(U9,E21)","v":{"$error":"#NAME?"}},null,null,null,null,"Dias Letivos",null,null,{"$f":"gfCountIfColor(P14:U18,$B$2)","v":{"$error":"#NAME?"}},null,"Parcial",null,{"$f":"SUM(E21,Q21)+J4","v":{"$error":"#NAME?"}}]
[]
[null,"Maio",null,null,null,null,null,null,null,null,null,null,null,"Junho"]
[null,"Sem","Dom","Seg","Ter","Qua","Qui","Sex","Sáb",null,null,null,null,"Sem","Dom","Seg","Ter","Qua","Qui","Sex","Sáb"]
[null,9,null,1,2,3,4,5,6,"1: Dia do Trabalho",null,null,null,null,null,null,null,null,1,2,3]
[null,10,7,8,9,10,11,12,13,null,null,null,null,14,4,5,6,7,8,9,10]
[null,11,14,15,16,17,18,19,20,null,null,null,null,15,11,12,13,14,15,16,17,"15: Corpus Christi"]
[null,12,21,22,23,24,25,26,27,null,null,null,null,16,18,19,20,21,22,23,24]
[null,13,28,29,30,31,null,null,null,null,null,null,null,17,25,26,27,28,29,30]
[null,"Dias Semana",null,{"$f":"gfCountIfColor(D25:D29,$B$2)","v":{"$error":"#NAME?"}},{"$f":"gfCountIfColor(E25:E29,$B$2)","v":{"$error":"#NAME?"}},{"$f":"gfCountIfColor(F25:F29,$B$2)","v":{"$error":"#NAME?"}},{"$f":"gfCountIfColor(G25:G29,$B$2)","v":{"$error":"#NAME?"}},{"$error":"#NAME?"},{"$error":"#NAME?"},null,null,null,null,"Dias Semana",null,{"$f":"gfCountIfColor(P25:P29,$B$2)","v":{"$error":"#NAME?"}},{"$f":"gfCountIfColor(Q25:Q29,$B$2)","v":{"$error":"#NAME?"}},{"$f":"gfCountIfColor(R25:R29,$B$2)","v":{"$error":"#NAME?"}},{"$error":"#NAME?"},{"$error":"#NAME?"},{"$error":"#NAME?"}]
[null,"Dias Letivos",null,null,{"$f":"gfCountIfColor(D25:I29,$B$2)","v":{"$error":"#NAME?"}},null,"Parcial",null,{"$f":"SUM(U21,E31)","v":{"$error":"#NAME?"}},null,null,null,null,"Dias Letivos",null,null,{"$f":"gfCountIfColor(P25:U29,$B$2)","v":{"$error":"#NAME?"}},null,"Parcial",null,{"$f":"SUM(I31,Q31)","v":{"$error":"#NAME?"}}]
[]
[]
[]
[null,"Julho"]
[null,"Sem","Dom","Seg","Ter","Qua","Qui","Sex","Sáb"]
[null,null,null,null,null,null,null,null,1]
[null,18,2,3,4,5,6,7,8]
[null,19,9,10,11,12,13,14,15,"15: Término 2017-1"]
[null,null,16,17,18,19,20,21,22]
[null,null,23,24,25,26,27,28,29]
[null,null,30,31]
[null,"Dias Semana",null,{"$f":"gfCountIfColor(D37:D41,$B$2)","v":{"$error":"#NAME?"}},{"$f":"gfCountIfColor(E37:E41,$B$2)","v":{"$error":"#NAME?"}},{"$error":"#NAME?"},{"$error":"#NAME?"},{"$f":"gfCountIfColor(H37:H41,$B$2)","v":{"$error":"#NAME?"}},{"$f":"gfCountIfColor(I37:I41,$B$2)","v":{"$error":"#NAME?"}}]
[null,"Dias Letivos",null,null,{"$f":"gfCountIfColor(D37:I41,$B$2)","v":{"$error":"#NAME?"}},null,"Total",null,{"$f":"SUM(U31,E44)","v":{"$error":"#NAME?"}}]
[]
[]
[null,null,null,"Totais de dias da semana 2016-1"]
[null,null,null,null,"Seg","Ter","Qua","Qui","Sex","Sab"]
[null,null,null,null,{"$f":"SUM(D20,P20,D30,P30,D43)","v":{"$error":"#NAME?"}},{"$f":"SUM(E20,Q20,E30,Q30,E43)","v":{"$error":"#NAME?"}},{"$error":"#NAME?"},{"$error":"#NAME?"},{"$error":"#NAME?"},{"$f":"SUM(I20,U20,I30,U30,I43)","v":{"$error":"#NAME?"}}]
[]
[]
[null,"Calendário 2017-2 - Regional Catalão"]
[]
[null,"Agosto",null,null,null,null,null,null,null,null,null,null,null,"Setembro"]
[null,"Sem","Dom","Seg","Ter","Qua","Qui","Sex","Sáb",null,null,null,null,"Sem","Dom","Seg","Ter","Qua","Qui","Sex","Sáb"]
[null,null,null,null,1,2,3,4,5,null,null,null,null,null,null,null,null,null,null,1,2]
[null,null,6,7,8,9,10,11,12,null,null,null,null,null,3,4,5,6,7,8,9,"7: Independência do Brasil"]
[null,null,13,14,15,16,17,18,19,"14: Início 2017-2",null,null,null,null,10,11,12,13,14,15,16]
[null,null,20,21,22,23,24,25,26,"20: Aniversário de Catalão",null,null,null,null,17,18,19,20,21,22,23]
[null,null,27,28,29,30,31,null,null,null,null,null,null,null,24,25,26,27,28,29,30]
[]
[null,"Dias Semana",null,{"$f":"gfCountIfColor(D56:D60,$B$2)","v":{"$error":"#NAME?"}},{"$f":"gfCountIfColor(E56:E60,$B$2)","v":{"$error":"#NAME?"}},{"$error":"#NAME?"},{"$f":"gfCountIfColor(G56:G60,$B$2)","v":{"$error":"#NAME?"}},{"$f":"gfCountIfColor(H56:H60,$B$2)","v":{"$error":"#NAME?"}},{"$error":"#NAME?"},null,null,null,null,"Dias Semana",null,{"$f":"gfCountIfColor(P56:P60,$B$2)","v":{"$error":"#NAME?"}},{"$f":"gfCountIfColor(Q56:Q60,$B$2)","v":{"$error":"#NAME?"}},{"$f":"gfCountIfColor(R56:R60,$B$2)","v":{"$error":"#NAME?"}},{"$f":"gfCountIfColor(S56:S60,$B$2)","v":{"$error":"#NAME?"}},{"$f":"gfCountIfColor(T56:T60,$B$2)","v":{"$error":"#NAME?"}},{"$f":"gfCountIfColor(U56:U60,$B$2)","v":{"$error":"#NAME?"}}]
[null,"Dias Letivos",null,null,{"$f":"gfCountIfColor(D56:I60,$B$2)","v":{"$error":"#NAME?"}},null,"Parcial",null,{"$f":"E63","v":{"$error":"#NAME?"}},null,null,null,null,"Dias Letivos",null,null,{"$f":"gfCountIfColor(P56:U60,$B$2)","v":{"$error":"#NAME?"}},null,"Parcial",null,{"$f":"Q63+I63","v":{"$error":"#NAME?"}}]
[]
[null,"Outubro",null,null,null,null,null,null,null,null,null,null,null,"Novembro"]
[null,"Sem","Dom","Seg","Ter","Qua","Qui","Sex","Sáb",null,null,null,null,"Sem","Dom","Seg","Ter","Qua","Qui","Sex","Sáb"]
[null,null,null,null,null,null,null,null,null,null,null,null,null,null,null,null,1,1,2,3,4,"2: Finados"]
[null,null,1,2,3,4,5,6,7,"09: Feriado Municipal",null,null,null,null,5,6,7,8,9,10,11]
[null,null,8,9,10,11,12,13,14,"10 e 11: Recesso",null,null,null,null,12,13,14,15,16,17,18,"15: Proclamação da República"]
[null,null,15,16,17,18,19,20,21,"12: Nsa. Sra. Aparecida",null,null,null,null,19,20,21,22,23,24,25]
[null,null,22,23,24,25,26,27,28,"25: Espaço das profissões",null,null,null,null,26,27,28,29,30]
[null,null,29,30,31,null,null,null,null,"28:  Dia do Serv. Público "]
[null,"Dias Semana",null,{"$f":"gfCountIfColor(D67:D72,$B$2)","v":{"$error":"#NAME?"}},{"$f":"gfCountIfColor(E67:E72,$B$2)","v":{"$error":"#NAME?"}},{"$f":"gfCountIfColor(F67:F72,$B$2)","v":{"$error":"#NAME?"}},{"$f":"gfCountIfColor(G67:G72,$B$2)","v":{"$error":"#NAME?"}},{"$error":"#NAME?"},{"$error":"#NAME?"},null,null,null,null,"Dias Semana",null,{"$f":"gfCountIfColor(P67:P71,$B$2)","v":{"$error":"#NAME?"}},{"$f":"gfCountIfColor(Q67:Q71,$B$2)","v":{"$error":"#NAME?"}},{"$error":"#NAME?"},{"$error":"#NAME?"},{"$error":"#NAME?"},{"$error":"#NAME?"}]
[null,"Dias Letivos",null,null,{"$f":"gfCountIfColor(D67:I72,$B$2)","v":{"$error":"#NAME?"}},null,"Parcial",null,{"$f":"SUM(U63,E74)","v":{"$error":"#NAME?"}},null,null,null,null,"Dias Letivos",null,null,{"$f":"gfCountIfColor(P67:U71,$B$2)","v":{"$error":"#NAME?"}},null,"Parcial",null,{"$f":"SUM(I74,Q74)","v":{"$error":"#NAME?"}}]
[]
[null,"Dezembro "]
[null,"Sem","Dom","Seg","Ter","Qua","Qui","Sex","Sáb",null,null,null,null,"Totais de dias da semana 2015-2"]
[null,null,null,null,null,null,null,1,2,null,null,null,null,null,"Seg","Ter","Qua","Qui","Sex","Sab"]
[null,null,3,4,5,6,7,8,9,null,null,null,null,null,{"$f":"SUM(D62,P43,P62,D73,D84,P73,W77)","v":{"$error":"#NAME?"}},{"$error":"#NAME?"},{"$error":"#NAME?"},{"$f":"SUM(G62,S43,S62,G73,G84,S73,Z77)","v":{"$error":"#NAME?"}},{"$error":"#NAME?"},{"$error":"#NAME?"}]
[null,null,10,11,12,13,14,15,16]
[null,null,17,18,19,20,21,22,23,"21: Término 2016-2"]
[null,null,24,25,26,27,28,29,30,"25: Natal"]
[null,null,31]
[null,"Dias Semana",null,{"$f":"gfCountIfColor(D78:D82,$B$2)","v":{"$error":"#NAME?"}},{"$f":"gfCountIfColor(E78:E82,$B$2)","v":{"$error":"#NAME?"}},{"$error":"#NAME?"},{"$f":"gfCountIfColor(G78:G82,$B$2)","v":{"$error":"#NAME?"}},{"$error":"#NAME?"},{"$f":"gfCountIfColor(I78:I82,$B$2)","v":{"$error":"#NAME?"}}]
[null,"Dias Letivos",null,null,{"$f":"gfCountIfColor(D78:I82,$B$2)","v":{"$error":"#NAME?"}},null,"Total",null,{"$f":"SUM(U74,E85)","v":{"$error":"#NAME?"}}]
[]
[]
[null,"2018-01-01",null,null,null,null,null,null,null,null,null,null,null,"2018-02-01"]
[null,"Sem","Dom","Seg","Ter","Qua","Qui","Sex","Sáb",null,null,null,null,"Sem","Dom","Seg","Ter","Qua","Qui","Sex","Sáb"]
[null,null,null,1,2,3,4,5,6,"01: Confraternização universal",null,null,null,null,null,null,null,null,1,2,3]
[null,null,7,8,9,10,11,12,13,null,null,null,null,null,4,5,6,7,8,9,10]
[null,null,14,15,16,17,18,19,20,null,null,null,null,null,11,12,13,14,15,16,17,"13: Carnaval"]
[null,null,21,22,23,24,25,26,27,null,null,null,null,null,18,19,20,21,22,23,24]
[null,null,28,29,30,31,null,null,null,null,null,null,null,null,25,26,27,28]
[]
[null,"2018-03-01"]
[null,"Sem","Dom","Seg","Ter","Qua","Qui","Sex","Sáb"]
[null,null,null,null,null,null,1,2,3]
[null,null,4,5,6,7,8,9,10,"12: Início 2018-1"]
[null,null,11,12,13,14,15,16,17]
[null,null,18,19,20,21,22,23,24]
[null,null,25,26,27,28,29,30,31]

{"sheet":"RGoiânia - Sam e Col","index":3,"n_rows":102,"n_cols":22,"rows_kept":102,"cut":false,"hidden":false,"merged":[[46,3,46,10],[0,1,0,22],[2,1,2,8],[2,13,2,20],[11,1,11,8],[11,13,11,20],[22,1,22,8],[22,13,22,20],[34,1,34,8],[34,13,34,20],[43,6,43,7],[27,21,27,22],[87,1,87,8],[87,13,87,20],[95,1,95,8],[76,13,76,20],[51,1,51,22],[53,13,53,20],[64,13,64,20],[75,1,75,8],[53,1,53,8],[64,1,64,8]]}
[null,"Calendário 2017-1 - Regional Goiânia/Câmpus Colemar Natal e Silva e Câmpus Samambaia"]
[]
[null,"Janeiro",null,null,null,null,null,null,null,null,null,null,null,"Fevereiro"]
[null,"Sem","Dom","Seg","Ter","Qua","Qui","Sex","Sáb",null,null,null,null,"Sem","Dom","Seg","Ter","Qua","Qui","Sex","Sáb"]
[null,null,1,2,3,4,5,6,7,"01: Confraternização universal",null,null,null,null,null,null,null,1,2,3,4]
[null,null,8,9,10,11,12,13,14,null,null,null,null,null,5,6,7,8,9,10,11,"9: Término de 2016-2"]
[null,null,15,16,17,18,19,20,21,null,null,null,null,null,12,13,14,15,16,17,18]
[null,null,22,23,24,25,26,27,28,null,null,null,null,null,19,20,21,22,23,24,25]
[null,null,29,30,31,null,null,null,null,null,null,null,null,null,26,27,28,null,null,null,null,"28: Carnaval"]
[]
[]
[null,"Março",null,null,null,null,null,null,null,null,null,null,null,"Abril"]
[null,"Sem","Dom","Seg","Ter","Qua","Qui","Sex","Sáb",null,null,null,null,"Sem","Dom","Seg","Ter","Qua","Qui","Sex","Sáb"]
[null,null,null,null,null,1,2,3,4,null,null,null,null,null,null,null,null,null,null,null,1]
[null,null,5,6,7,8,9,10,11,"9: Início de 2017-1",null,null,null,null,2,3,4,5,6,7,8]
[null,null,12,13,14,15,16,17,18,null,null,null,null,null,9,10,11,12,13,14,15,"14: Paixão de Cristo"]
[null,null,19,20,21,22,23,24,25,null,null,null,null,null,16,17,18,19,20,21,22,"21: Tiradentes"]
[null,null,26,27,28,29,30,31,null,null,null,null,null,null,23,24,25,26,27,28,29,"15 e 22: Recesso"]
[null,null,null,null,null,null,null,null,null,null,null,null,null,null,30]
[null,"Dias Semana",null,{"$f":"gfCountIfColor(D14:D18,$B$2)","v":{"$error":"#NAME?"}},{"$f":"gfCountIfColor(E14:E18,$B$2)","v":{"$error":"#NAME?"}},{"$error":"#NAME?"},{"$error":"#NAME?"},{"$error":"#NAME?"},{"$error":"#NAME?"},null,null,null,null,"Dias Semana",null,{"$f":"gfCountIfColor(P14:P18,$B$2)","v":{"$error":"#NAME?"}},{"$f":"gfCountIfColor(Q14:Q18,$B$2)","v":{"$error":"#NAME?"}},{"$error":"#NAME?"},{"$error":"#NAME?"},{"$error":"#NAME?"},{"$error":"#NAME?"}]
[null,"Dias Letivos",null,null,{"$f":"gfCountIfColor(D14:I18,$B$2)","v":{"$error":"#NAME?"}},null,"Parcial",null,{"$f":"E21","v":{"$error":"#NAME?"}},null,null,null,null,"Dias Letivos",null,null,{"$f":"gfCountIfColor(P14:U18,$B$2)","v":{"$error":"#NAME?"}},null,"Parcial",null,{"$f":"SUM(E21,Q21)","v":{"$error":"#NAME?"}}]
[]
[null,"Maio",null,null,null,null,null,null,null,null,null,null,null,"Junho"]
[null,"Sem","Dom","Seg","Ter","Qua","Qui","Sex","Sáb",null,null,null,null,"Sem","Dom","Seg","Ter","Qua","Qui","Sex","Sáb"]
[null,null,null,1,2,3,4,5,6,"1: Dia do Trabalho",null,null,null,null,null,null,null,null,1,2,3]
[null,null,7,8,9,10,11,12,13,null,null,null,null,null,4,5,6,7,8,9,10]
[null,null,14,15,16,17,18,19,20,null,null,null,null,null,11,12,13,14,15,16,17,"15: Corpus Christi"]
[null,null,21,22,23,24,25,26,27,"24: Padroeira de Goiânia",null,null,null,null,18,19,20,21,22,23,24,"19 e 20: Espaço das Profissões"]
[null,null,28,29,30,31,null,null,null,null,null,null,null,null,25,26,27,28,29,30]
[null,"Dias Semana",null,{"$f":"gfCountIfColor(D25:D29,$B$2)","v":{"$error":"#NAME?"}},{"$f":"gfCountIfColor(E25:E29,$B$2)","v":{"$error":"#NAME?"}},{"$error":"#NAME?"},{"$error":"#NAME?"},{"$error":"#NAME?"},{"$error":"#NAME?"},null,null,null,null,"Dias Semana",null,{"$f":"gfCountIfColor(P25:P29,$B$2)","v":{"$error":"#NAME?"}},{"$f":"gfCountIfColor(Q25:Q29,$B$2)","v":{"$error":"#NAME?"}},{"$error":"#NAME?"},{"$error":"#NAME?"},{"$error":"#NAME?"},{"$error":"#NAME?"}]
[null,"Dias Letivos",null,null,{"$f":"gfCountIfColor(D25:I29,$B$2)","v":{"$error":"#NAME?"}},null,"Parcial",null,{"$f":"SUM(U21,E31)","v":{"$error":"#NAME?"}},null,null,null,null,"Dias Letivos",null,null,{"$f":"gfCountIfColor(P25:U29,$B$2)","v":{"$error":"#NAME?"}},null,"Parcial",null,{"$f":"SUM(I31,Q31)","v":{"$error":"#NAME?"}}]
[]
[]
[]
[null,"Julho"]
[null,"Sem","Dom","Seg","Ter","Qua","Qui","Sex","Sáb"]
[null,null,null,null,null,null,null,null,1]
[null,null,2,3,4,5,6,7,8]
[null,null,9,10,11,12,13,14,15,"13: Término 2017-1"]
[null,null,16,17,18,19,20,21,22]
[null,null,23,24,25,26,27,28,29]
[null,null,30,31]
[null,"Dias Semana",null,{"$f":"gfCountIfColor(D37:D42,$B$2)","v":{"$error":"#NAME?"}},{"$f":"gfCountIfColor(E37:E42,$B$2)","v":{"$error":"#NAME?"}},{"$error":"#NAME?"},{"$error":"#NAME?"},{"$error":"#NAME?"},{"$error":"#NAME?"}]
[null,"Dias Letivos",null,null,{"$f":"gfCountIfColor(D37:I41,$B$2)","v":{"$error":"#NAME?"}},null,"Total",null,{"$f":"SUM(U31,E44)","v":{"$error":"#NAME?"}}]
[]
[]
[null,null,null,"Totais de dias da semana 2016-1"]
[null,null,null,null,"Seg","Ter","Qua","Qui","Sex","Sab"]
[null,null,null,null,{"$f":"SUM(D20,P20,D30,P30,D43)","v":{"$error":"#NAME?"}},{"$f":"SUM(E20,Q20,E30,Q30,E43)","v":{"$error":"#NAME?"}},{"$error":"#NAME?"},{"$error":"#NAME?"},{"$error":"#NAME?"},{"$error":"#NAME?"}]
[]
[]
[null,"Calendário 2017-2 - Regional Goiânia/Câmpus Colemar Natal e Silva e Câmpus Samambaia"]
[]
[null,"Agosto",null,null,null,null,null,null,null,null,null,null,null,"Setembro"]
[null,"Sem","Dom","Seg","Ter","Qua","Qui","Sex","Sáb",null,null,null,null,"Sem","Dom","Seg","Ter","Qua","Qui","Sex","Sáb"]
[null,null,null,null,1,2,3,4,5,null,null,null,null,null,null,null,null,null,null,1,2]
[null,null,6,7,8,9,10,11,12,null,null,null,null,null,3,4,5,6,7,8,9,"7: Independência do Brasil"]
[null,null,13,14,15,16,17,18,19,"14: Início 2017-2",null,null,null,null,10,11,12,13,14,15,16]
[null,null,20,21,22,23,24,25,26,null,null,null,null,null,17,18,19,20,21,22,23]
[null,null,27,28,29,30,31,null,null,null,null,null,null,null,24,25,26,27,28,29,30]
[]
[null,"Dias Semana",null,{"$f":"gfCountIfColor(D56:D60,$B$2)","v":{"$error":"#NAME?"}},{"$f":"gfCountIfColor(E56:E60,$B$2)","v":{"$error":"#NAME?"}},{"$error":"#NAME?"},{"$error":"#NAME?"},{"$error":"#NAME?"},{"$error":"#NAME?"},null,null,null,null,"Dias Semana",null,{"$f":"gfCountIfColor(P56:P60,$B$2)","v":{"$error":"#NAME?"}},{"$f":"gfCountIfColor(Q56:Q60,$B$2)","v":{"$error":"#NAME?"}},{"$error":"#NAME?"},{"$error":"#NAME?"},{"$error":"#NAME?"},{"$error":"#NAME?"}]
[null,"Dias Letivos",null,null,{"$f":"gfCountIfColor(D56:I60,$B$2)","v":{"$error":"#NAME?"}},null,"Parcial",null,{"$f":"E63","v":{"$error":"#NAME?"}},null,null,null,null,"Dias Letivos",null,null,{"$f":"gfCountIfColor(P56:U60,$B$2)","v":{"$error":"#NAME?"}},null,"Parcial",null,{"$f":"Q63+I63","v":{"$error":"#NAME?"}}]
[]
[null,"Outubro",null,null,null,null,null,null,null,null,null,null,null,"Novembro"]
[null,"Sem","Dom","Seg","Ter","Qua","Qui","Sex","Sáb",null,null,null,null,"Sem","Dom","Seg","Ter","Qua","Qui","Sex","Sáb"]
[null,null,null,null,null,null,null,null,null,null,null,null,null,null,null,null,1,1,2,3,4,"2: Finados"]
[null,null,1,2,3,4,5,6,7,"12: Nsa. Sra. Aparecida",null,null,null,null,5,6,7,8,9,10,11,"6 a 8: Conpeex"]
[null,null,8,9,10,11,12,13,14,null,null,null,null,null,12,13,14,15,16,17,18,"15: Proclamação da República"]
[null,null,15,16,17,18,19,20,21,null,null,null,null,null,19,20,21,22,23,24,25]
[null,null,22,23,24,25,26,27,28,"24: Aniversário de Goiânia",null,null,null,null,26,27,28,29,30]
[null,null,29,30,31,null,null,null,null,"28:  Dia do Serv. Público "]
[null,"Dias Semana",null,{"$f":"gfCountIfColor(D67:D72,$B$2)","v":{"$error":"#NAME?"}},{"$f":"gfCountIfColor(E67:E72,$B$2)","v":{"$error":"#NAME?"}},{"$error":"#NAME?"},{"$error":"#NAME?"},{"$error":"#NAME?"},{"$error":"#NAME?"},null,null,null,null,"Dias Semana",null,{"$f":"gfCountIfColor(P67:P71,$B$2)","v":{"$error":"#NAME?"}},{"$f":"gfCountIfColor(Q67:Q71,$B$2)","v":{"$error":"#NAME?"}},{"$error":"#NAME?"},{"$error":"#NAME?"},{"$error":"#NAME?"},{"$error":"#NAME?"}]
[null,"Dias Letivos",null,null,{"$f":"gfCountIfColor(D67:I72,$B$2)","v":{"$error":"#NAME?"}},null,"Parcial",null,{"$f":"SUM(U63,E74)","v":{"$error":"#NAME?"}},null,null,null,null,"Dias Letivos",null,null,{"$f":"gfCountIfColor(P67:U71,$B$2)","v":{"$error":"#NAME?"}},null,"Parcial",null,{"$f":"SUM(I74,Q74)","v":{"$error":"#NAME?"}}]
[]
[null,"Dezembro "]
[null,"Sem","Dom","Seg","Ter","Qua","Qui","Sex","Sáb",null,null,null,null,"Totais de dias da semana 2015-2"]
[null,null,null,null,null,null,null,1,2,null,null,null,null,null,"Seg","Ter","Qua","Qui","Sex","Sab"]
[null,null,3,4,5,6,7,8,9,null,null,null,null,null,{"$f":"SUM(D62,P43,P62,D73,D84,P73)","v":{"$error":"#NAME?"}},{"$f":"SUM(E62,Q43,Q62,E73,E84,Q73)","v":{"$error":"#NAME?"}},{"$error":"#NAME?"},{"$error":"#NAME?"},{"$error":"#NAME?"},{"$error":"#NAME?"}]
[null,null,10,11,12,13,14,15,16,"14: Término 2017-2"]
[null,null,17,18,19,20,21,22,23]
[null,null,24,25,26,27,28,29,30,"25: Natal"]
[null,null,31]
[null,"Dias Semana",null,{"$f":"gfCountIfColor(D78:D82,$B$2)","v":{"$error":"#NAME?"}},{"$f":"gfCountIfColor(E78:E82,$B$2)","v":{"$error":"#NAME?"}},{"$error":"#NAME?"},{"$error":"#NAME?"},{"$error":"#NAME?"},{"$error":"#NAME?"}]
[null,"Dias Letivos",null,null,{"$f":"gfCountIfColor(D78:I82,$B$2)","v":{"$error":"#NAME?"}},null,"Total",null,{"$f":"SUM(U74,E85)","v":{"$error":"#NAME?"}}]
[]
[]
[null,"2018-01-01",null,null,null,null,null,null,null,null,null,null,null,"2018-02-01"]
[null,"Sem","Dom","Seg","Ter","Qua","Qui","Sex","Sáb",null,null,null,null,"Sem","Dom","Seg","Ter","Qua","Qui","Sex","Sáb"]
[null,null,null,1,2,3,4,5,6,"01: Confraternização universal",null,null,null,null,null,null,null,null,1,2,3]
[null,null,7,8,9,10,11,12,13,null,null,null,null,null,4,5,6,7,8,9,10]
[null,null,14,15,16,17,18,19,20,null,null,null,null,null,11,12,13,14,15,16,17,"13: Carnaval"]
[null,null,21,22,23,24,25,26,27,null,null,null,null,null,18,19,20,21,22,23,24]
[null,null,28,29,30,31,null,null,null,null,null,null,null,null,25,26,27,28]
[]
[null,"2018-03-01"]
[null,"Sem","Dom","Seg","Ter","Qua","Qui","Sex","Sáb"]
[null,null,null,null,null,null,1,2,3]
[null,null,4,5,6,7,8,9,10,"12: Início 2018-1"]
[null,null,11,12,13,14,15,16,17]
[null,null,18,19,20,21,22,23,24]
[null,null,25,26,27,28,29,30,31]

{"sheet":"RGoiânia - CAP","index":4,"n_rows":102,"n_cols":23,"rows_kept":102,"cut":false,"hidden":false,"merged":[[87,1,87,8],[87,13,87,20],[95,1,95,8],[53,1,53,8],[53,13,53,20],[64,1,64,8],[64,13,64,20],[75,1,75,8],[76,13,76,20],[51,1,51,22],[0,1,0,22],[2,1,2,8],[2,13,2,20],[11,1,11,8],[11,13,11,20],[22,1,22,8],[22,13,22,20],[27,21,27,22],[34,1,34,8],[34,13,34,20],[43,6,43,7],[46,3,46,10]]}
[null,"Calendário 2017-1 - Regional Goiânia/Câmpus Aparecida de Goiânia"]
[]
[null,"Janeiro",null,null,null,null,null,null,null,null,null,null,null,"Fevereiro"]
[null,"Sem","Dom","Seg","Ter","Qua","Qui","Sex","Sáb",null,null,null,null,"Sem","Dom","Seg","Ter","Qua","Qui","Sex","Sáb"]
[null,null,1,2,3,4,5,6,7,"01: Confraternização universal",null,null,null,null,null,null,null,1,2,3,4]
[null,null,8,9,10,11,12,13,14,null,null,null,null,null,5,6,7,8,9,10,11,"9: Término de 2016-2"]
[null,null,15,16,17,18,19,20,21,null,null,null,null,null,12,13,14,15,16,17,18,null,"Rotina"]
[null,null,22,23,24,25,26,27,28,null,null,null,null,null,19,20,21,22,23,24,25,null,"Matrícula"]
[null,null,29,30,31,null,null,null,null,null,null,null,null,null,26,27,28,null,null,null,null,"28: Carnaval"]
[]
[]
[null,"Março",null,null,null,null,null,null,null,null,null,null,null,"Abril"]
[null,"Sem","Dom","Seg","Ter","Qua","Qui","Sex","Sáb",null,null,null,null,"Sem","Dom","Seg","Ter","Qua","Qui","Sex","Sáb"]
[null,null,null,null,null,1,2,3,4,null,null,null,null,null,null,null,null,null,null,null,1]
[null,null,5,6,7,8,9,10,11,"9: Início de 2017-1",null,null,null,null,2,3,4,5,6,7,8]
[null,null,12,13,14,15,16,17,18,null,null,null,null,null,9,10,11,12,13,14,15,"14: Paixão de Cristo"]
[null,null,19,20,21,22,23,24,25,null,null,null,null,null,16,17,18,19,20,21,22,"21: Tiradentes"]
[null,null,26,27,28,29,30,31,null,null,null,null,null,null,23,24,25,26,27,28,29,"15 e 22: Recesso"]
[null,null,null,null,null,null,null,null,null,null,null,null,null,null,30]
[null,"Dias Semana",null,{"$f":"gfCountIfColor(D14:D18,$B$2)","v":{"$error":"#NAME?"}},{"$f":"gfCountIfColor(E14:E18,$B$2)","v":{"$error":"#NAME?"}},{"$error":"#NAME?"},{"$error":"#NAME?"},{"$error":"#NAME?"},{"$error":"#NAME?"},null,null,null,null,"Dias Semana",null,{"$f":"gfCountIfColor(P14:P18,$B$2)","v":{"$error":"#NAME?"}},{"$f":"gfCountIfColor(Q14:Q18,$B$2)","v":{"$error":"#NAME?"}},{"$error":"#NAME?"},{"$error":"#NAME?"},{"$error":"#NAME?"},{"$error":"#NAME?"}]
[null,"Dias Letivos",null,null,{"$f":"gfCountIfColor(D14:I18,$B$2)","v":{"$error":"#NAME?"}},null,"Parcial",null,{"$f":"E21","v":{"$error":"#NAME?"}},null,null,null,null,"Dias Letivos",null,null,{"$f":"gfCountIfColor(P14:U18,$B$2)","v":{"$error":"#NAME?"}},null,"Parcial",null,{"$f":"SUM(E21,Q21)","v":{"$error":"#NAME?"}}]
[]
[null,"Maio",null,null,null,null,null,null,null,null,null,null,null,"Junho"]
[null,"Sem","Dom","Seg","Ter","Qua","Qui","Sex","Sáb",null,null,null,null,"Sem","Dom","Seg","Ter","Qua","Qui","Sex","Sáb"]
[null,null,null,1,2,3,4,5,6,"1: Dia do Trabalho",null,null,null,null,null,null,null,null,1,2,3]
[null,null,7,8,9,10,11,12,13,"11: Aniversário de Ap de Goiânia",null,null,null,null,4,5,6,7,8,9,10]
[null,null,14,15,16,17,18,19,20,null,null,null,null,null,11,12,13,14,15,16,17,"15: Corpus Christi"]
[null,null,21,22,23,24,25,26,27,null,null,null,null,null,18,19,20,21,22,23,24,"19 e 20: Espaço das Profissões"]
[null,null,28,29,30,31,null,null,null,null,null,null,null,null,25,26,27,28,29,30]
[null,"Dias Semana",null,{"$f":"gfCountIfColor(D25:D29,$B$2)","v":{"$error":"#NAME?"}},{"$f":"gfCountIfColor(E25:E29,$B$2)","v":{"$error":"#NAME?"}},{"$error":"#NAME?"},{"$error":"#NAME?"},{"$error":"#NAME?"},{"$error":"#NAME?"},null,null,null,null,"Dias Semana",null,{"$f":"gfCountIfColor(P25:P29,$B$2)","v":{"$error":"#NAME?"}},{"$f":"gfCountIfColor(Q25:Q29,$B$2)","v":{"$error":"#NAME?"}},{"$error":"#NAME?"},{"$error":"#NAME?"},{"$error":"#NAME?"},{"$error":"#NAME?"}]
[null,"Dias Letivos",null,null,{"$f":"gfCountIfColor(D25:I29,$B$2)","v":{"$error":"#NAME?"}},null,"Parcial",null,{"$f":"SUM(U21,E31)","v":{"$error":"#NAME?"}},null,null,null,null,"Dias Letivos",null,null,{"$f":"gfCountIfColor(P25:U29,$B$2)","v":{"$error":"#NAME?"}},null,"Parcial",null,{"$f":"SUM(I31,Q31)","v":{"$error":"#NAME?"}}]
[]
[]
[]
[null,"Julho"]
[null,"Sem","Dom","Seg","Ter","Qua","Qui","Sex","Sáb"]
[null,null,null,null,null,null,null,null,1]
[null,null,2,3,4,5,6,7,8]
[null,null,9,10,11,12,13,14,15,"13: Término 2017-1"]
[null,null,16,17,18,19,20,21,22]
[null,null,23,24,25,26,27,28,29]
[null,null,30,31]
[null,"Dias Semana",null,{"$f":"gfCountIfColor(D37:D41,$B$2)","v":{"$error":"#NAME?"}},{"$f":"gfCountIfColor(E37:E41,$B$2)","v":{"$error":"#NAME?"}},{"$error":"#NAME?"},{"$error":"#NAME?"},{"$error":"#NAME?"},{"$error":"#NAME?"}]
[null,"Dias Letivos",null,null,{"$f":"gfCountIfColor(D37:I41,$B$2)","v":{"$error":"#NAME?"}},null,"Total",null,{"$f":"SUM(U31,E44)","v":{"$error":"#NAME?"}}]
[]
[]
[null,null,null,"Totais de dias da semana 2016-1"]
[null,null,null,null,"Seg","Ter","Qua","Qui","Sex","Sab"]
[null,null,null,null,{"$f":"SUM(D20,P20,D30,P30,D43)","v":{"$error":"#NAME?"}},{"$f":"SUM(E20,Q20,E30,Q30,E43)","v":{"$error":"#NAME?"}},{"$error":"#NAME?"},{"$error":"#NAME?"},{"$error":"#NAME?"},{"$error":"#NAME?"}]
[]
[]
[null,"Calendário 2017-2 - Regional Goiânia/Câmpus Aparecida de Goiânia"]
[]
[null,"Agosto",null,null,null,null,null,null,null,null,null,null,null,"Setembro"]
[null,"Sem","Dom","Seg","Ter","Qua","Qui","Sex","Sáb",null,null,null,null,"Sem","Dom","Seg","Ter","Qua","Qui","Sex","Sáb"]
[null,null,null,null,1,2,3,4,5,null,null,null,null,null,null,null,null,null,null,1,2]
[null,null,6,7,8,9,10,11,12,null,null,null,null,null,3,4,5,6,7,8,9,"7: Independência do Brasil"]
[null,null,13,14,15,16,17,18,19,"14: Início 2017-2",null,null,null,null,10,11,12,13,14,15,16]
[null,null,20,21,22,23,24,25,26,null,null,null,null,null,17,18,19,20,21,22,23]
[null,null,27,28,29,30,31,null,null,null,null,null,null,null,24,25,26,27,28,29,30]
[]
[null,"Dias Semana",null,{"$f":"gfCountIfColor(D56:D60,$B$2)","v":{"$error":"#NAME?"}},{"$f":"gfCountIfColor(E56:E60,$B$2)","v":{"$error":"#NAME?"}},{"$error":"#NAME?"},{"$f":"gfCountIfColor(G56:G60,$B$2)","v":{"$error":"#NAME?"}},{"$f":"gfCountIfColor(H56:H60,$B$2)","v":{"$error":"#NAME?"}},{"$f":"gfCountIfColor(I56:I60,$B$2)","v":{"$error":"#NAME?"}},null,null,null,null,"Dias Semana",null,{"$f":"gfCountIfColor(P56:P60,$B$2)","v":{"$error":"#NAME?"}},{"$f":"gfCountIfColor(Q56:Q60,$B$2)","v":{"$error":"#NAME?"}},{"$f":"gfCountIfColor(R56:R60,$B$2)","v":{"$error":"#NAME?"}},{"$f":"gfCountIfColor(S56:S60,$B$2)","v":{"$error":"#NAME?"}},{"$f":"gfCountIfColor(T56:T60,$B$2)","v":{"$error":"#NAME?"}},{"$f":"gfCountIfColor(U56:U60,$B$2)","v":{"$error":"#NAME?"}}]
[null,"Dias Letivos",null,null,{"$f":"gfCountIfColor(D56:I60,$B$2)","v":{"$error":"#NAME?"}},null,"Parcial",null,{"$f":"E63","v":{"$error":"#NAME?"}},null,null,null,null,"Dias Letivos",null,null,{"$f":"gfCountIfColor(P56:U60,$B$2)","v":{"$error":"#NAME?"}},null,"Parcial",null,{"$f":"Q63+I63","v":{"$error":"#NAME?"}}]
[]
[null,"Outubro",null,null,null,null,null,null,null,null,null,null,null,"Novembro"]
[null,"Sem","Dom","Seg","Ter","Qua","Qui","Sex","Sáb",null,null,null,null,"Sem","Dom","Seg","Ter","Qua","Qui","Sex","Sáb"]
[null,null,null,null,null,null,null,null,null,null,null,null,null,null,null,null,1,1,2,3,4,"2: Finados"]
[null,null,1,2,3,4,5,6,7,"12: Nsa. Sra. Aparecida",null,null,null,null,5,6,7,8,9,10,11,"13: Recesso"]
[null,null,8,9,10,11,12,13,14,null,null,null,null,null,12,13,14,15,16,17,18,"14: Emancipação de Ap de Goiânia"]
[null,null,15,16,17,18,19,20,21,null,null,null,null,null,19,20,21,22,23,24,25,"15: Proclamação da República"]
[null,null,22,23,24,25,26,27,28,"24: Aniversário de Goiânia",null,null,null,null,26,27,28,29,30,null,null,"20: Consciência negra"]
[null,null,29,30,31,null,null,null,null,"28:  Dia do Serv. Público "]
[null,"Dias Semana",null,{"$f":"gfCountIfColor(D67:D72,$B$2)","v":{"$error":"#NAME?"}},{"$f":"gfCountIfColor(E67:E72,$B$2)","v":{"$error":"#NAME?"}},{"$error":"#NAME?"},{"$error":"#NAME?"},{"$error":"#NAME?"},{"$error":"#NAME?"},null,null,null,null,"Dias Semana",null,{"$f":"gfCountIfColor(P67:P71,$B$2)","v":{"$error":"#NAME?"}},{"$f":"gfCountIfColor(Q67:Q71,$B$2)","v":{"$error":"#NAME?"}},{"$error":"#NAME?"},{"$error":"#NAME?"},{"$error":"#NAME?"},{"$error":"#NAME?"}]
[null,"Dias Letivos",null,null,{"$f":"gfCountIfColor(D67:I72,$B$2)","v":{"$error":"#NAME?"}},null,"Parcial",null,{"$f":"SUM(U63,E74)","v":{"$error":"#NAME?"}},null,null,null,null,"Dias Letivos",null,null,{"$f":"gfCountIfColor(P67:U71,$B$2)","v":{"$error":"#NAME?"}},null,"Parcial",null,{"$f":"SUM(I74,Q74)","v":{"$error":"#NAME?"}}]
[]
[null,"Dezembro "]
[null,"Sem","Dom","Seg","Ter","Qua","Qui","Sex","Sáb",null,null,null,null,"Totais de dias da semana 2015-2"]
[null,null,null,null,null,null,null,1,2,null,null,null,null,null,"Seg","Ter","Qua","Qui","Sex","Sab"]
[null,null,3,4,5,6,7,8,9,null,null,null,null,null,{"$f":"SUM(D62,P43,P62,D73,D84,P73)","v":{"$error":"#NAME?"}},{"$f":"SUM(E62,Q43,Q62,E73,E84,Q73)","v":{"$error":"#NAME?"}},{"$error":"#NAME?"},{"$error":"#NAME?"},{"$error":"#NAME?"},{"$error":"#NAME?"}]
[null,null,10,11,12,13,14,15,16]
[null,null,17,18,19,20,21,22,23,"18: Término 2017-2"]
[null,null,24,25,26,27,28,29,30,"25: Natal"]
[null,null,31]
[null,"Dias Semana",null,{"$f":"gfCountIfColor(D78:D82,$B$2)","v":{"$error":"#NAME?"}},{"$f":"gfCountIfColor(E78:E82,$B$2)","v":{"$error":"#NAME?"}},{"$error":"#NAME?"},{"$f":"gfCountIfColor(G78:G82,$B$2)","v":{"$error":"#NAME?"}},{"$f":"gfCountIfColor(H78:H82,$B$2)","v":{"$error":"#NAME?"}},{"$f":"gfCountIfColor(I78:I82,$B$2)","v":{"$error":"#NAME?"}}]
[null,"Dias Letivos",null,null,{"$f":"gfCountIfColor(D78:I82,$B$2)","v":{"$error":"#NAME?"}},null,"Total",null,{"$f":"SUM(U74,E85)","v":{"$error":"#NAME?"}}]
[]
[]
[null,"2018-01-01",null,null,null,null,null,null,null,null,null,null,null,"2018-02-01"]
[null,"Sem","Dom","Seg","Ter","Qua","Qui","Sex","Sáb",null,null,null,null,"Sem","Dom","Seg","Ter","Qua","Qui","Sex","Sáb"]
[null,null,null,1,2,3,4,5,6,"01: Confraternização universal",null,null,null,null,null,null,null,null,1,2,3]
[null,null,7,8,9,10,11,12,13,null,null,null,null,null,4,5,6,7,8,9,10]
[null,null,14,15,16,17,18,19,20,null,null,null,null,null,11,12,13,14,15,16,17,"13: Carnaval"]
[null,null,21,22,23,24,25,26,27,null,null,null,null,null,18,19,20,21,22,23,24]
[null,null,28,29,30,31,null,null,null,null,null,null,null,null,25,26,27,28]
[]
[null,"2018-03-01"]
[null,"Sem","Dom","Seg","Ter","Qua","Qui","Sex","Sáb"]
[null,null,null,null,null,null,1,2,3]
[null,null,4,5,6,7,8,9,10,"12: Início 2018-1"]
[null,null,11,12,13,14,15,16,17]
[null,null,18,19,20,21,22,23,24]
[null,null,25,26,27,28,29,30,31]

{"sheet":"RGoiás","index":5,"n_rows":114,"n_cols":22,"rows_kept":114,"cut":false,"hidden":false,"merged":[[22,1,22,8],[22,13,22,20],[0,1,0,22],[2,1,2,8],[2,13,2,20],[11,1,11,8],[11,13,11,20],[34,1,34,8],[34,13,34,20],[39,9,39,11],[43,6,43,7],[46,3,46,10],[76,13,76,20],[87,1,87,8],[87,13,87,20],[98,1,98,8],[51,1,51,22],[53,1,53,8],[53,13,53,20],[64,1,64,8],[64,13,64,20],[75,1,75,8],[59,21,59,22]]}
[null,"Calendário 2017-1 - Regional Goiás"]
[]
[null,"Janeiro",null,null,null,null,null,null,null,null,null,null,null,"Fevereiro"]
[null,"Sem","Dom","Seg","Ter","Qua","Qui","Sex","Sáb",null,null,null,null,"Sem","Dom","Seg","Ter","Qua","Qui","Sex","Sáb"]
[null,null,1,2,3,4,5,6,7,"01: Confraternização universal",null,null,null,null,null,null,null,1,2,3,4]
[null,null,8,9,10,11,12,13,14,null,null,null,null,null,5,6,7,8,9,10,11]
[null,null,15,16,17,18,19,20,21,null,null,null,null,null,12,13,14,15,16,17,18]
[null,null,22,23,24,25,26,27,28,null,null,null,null,null,19,20,21,22,23,24,25]
[null,null,29,30,31,null,null,null,null,null,null,null,null,null,26,27,28,null,null,null,null,"28: Carnaval"]
[]
[]
[null,"Março",null,null,null,null,null,null,null,null,null,null,null,"Abril"]
[null,"Sem","Dom","Seg","Ter","Qua","Qui","Sex","Sáb",null,null,null,null,"Sem","Dom","Seg","Ter","Qua","Qui","Sex","Sáb"]
[null,null,null,null,null,1,2,3,4,null,null,null,null,null,null,null,null,null,null,null,1]
[null,null,5,6,7,8,9,10,11,null,null,null,null,null,2,3,4,5,6,7,8,"3: Início de 2017-1"]
[null,null,12,13,14,15,16,17,18,null,null,null,null,null,9,10,11,12,13,14,15,"14: Paixão de Cristo"]
[null,null,19,20,21,22,23,24,25,null,null,null,null,null,16,17,18,19,20,21,22,"21: Tiradentes"]
[null,null,26,27,28,29,30,31,null,null,null,null,null,null,23,24,25,26,27,28,29,"15 e 22: Recesso"]
[null,null,null,null,null,null,null,null,null,null,null,null,null,null,30]
[null,"Dias Semana",null,{"$f":"gfCountIfColor(D15:D18,$B$2)","v":{"$error":"#NAME?"}},{"$f":"gfCountIfColor(E15:E18,$B$2)","v":{"$error":"#NAME?"}},{"$f":"gfCountIfColor(F15:F18,$B$2)","v":{"$error":"#NAME?"}},{"$error":"#NAME?"},{"$error":"#NAME?"},{"$f":"gfCountIfColor(I15:I18,$B$2)","v":{"$error":"#NAME?"}},null,null,null,null,"Dias Semana",null,{"$f":"gfCountIfColor(P15:P18,$B$2)","v":{"$error":"#NAME?"}},{"$f":"gfCountIfColor(Q15:Q18,$B$2)","v":{"$error":"#NAME?"}},{"$error":"#NAME?"},{"$error":"#NAME?"},{"$f":"gfCountIfColor(T14:T18,$B$2)","v":{"$error":"#NAME?"}},{"$f":"gfCountIfColor(U14:U18,$B$2)","v":{"$error":"#NAME?"}}]
[null,"Dias Letivos",null,null,{"$f":"gfCountIfColor(D14:I18,$B$2)","v":{"$error":"#NAME?"}},null,"Parcial",null,{"$f":"SUM(U9,E21)","v":{"$error":"#NAME?"}},null,null,null,null,"Dias Letivos",null,null,{"$f":"gfCountIfColor(P14:U18,$B$2)","v":{"$error":"#NAME?"}},null,"Parcial",null,{"$f":"SUM(E21,Q21)+J4","v":{"$error":"#NAME?"}}]
[]
[null,"Maio",null,null,null,null,null,null,null,null,null,null,null,"Junho"]
[null,"Sem","Dom","Seg","Ter","Qua","Qui","Sex","Sáb",null,null,null,null,"Sem","Dom","Seg","Ter","Qua","Qui","Sex","Sáb"]
[null,null,null,1,2,3,4,5,6,"1: Dia do Trabalho",null,null,null,null,null,null,null,null,1,2,3]
[null,null,7,8,9,10,11,12,13,null,null,null,null,null,4,5,6,7,8,9,10]
[null,null,14,15,16,17,18,19,20,null,null,null,null,null,11,12,13,14,15,16,17,"15: Corpus Christi"]
[null,null,21,22,23,24,25,26,27,null,null,null,null,null,18,19,20,21,22,23,24]
[null,null,28,29,30,31,null,null,null,null,null,null,null,null,25,26,27,28,29,30]
[null,"Dias Semana",null,{"$f":"gfCountIfColor(D25:D29,$B$2)","v":{"$error":"#NAME?"}},{"$f":"gfCountIfColor(E25:E29,$B$2)","v":{"$error":"#NAME?"}},{"$f":"gfCountIfColor(F25:F29,$B$2)","v":{"$error":"#NAME?"}},{"$f":"gfCountIfColor(G25:G29,$B$2)","v":{"$error":"#NAME?"}},{"$error":"#NAME?"},{"$error":"#NAME?"},null,null,null,null,"Dias Semana",null,{"$f":"gfCountIfColor(P25:P29,$B$2)","v":{"$error":"#NAME?"}},{"$f":"gfCountIfColor(Q25:Q29,$B$2)","v":{"$error":"#NAME?"}},{"$error":"#NAME?"},{"$error":"#NAME?"},{"$error":"#NAME?"},{"$error":"#NAME?"}]
[null,"Dias Letivos",null,null,{"$f":"gfCountIfColor(D25:I29,$B$2)","v":{"$error":"#NAME?"}},null,"Parcial",null,{"$f":"SUM(U21,E31)","v":{"$error":"#NAME?"}},null,null,null,null,"Dias Letivos",null,null,{"$f":"gfCountIfColor(P25:U29,$B$2)","v":{"$error":"#NAME?"}},null,"Parcial",null,{"$f":"SUM(I31,Q31)","v":{"$error":"#NAME?"}}]
[]
[]
[]
[null,"Julho",null,null,null,null,null,null,null,null,null,null,null,"Agosto"]
[null,"Sem","Dom","Seg","Ter","Qua","Qui","Sex","Sáb",null,null,null,null,"Sem","Dom","Seg","Ter","Qua","Qui","Sex","Sáb"]
[null,null,null,null,null,null,null,null,1,null,null,null,null,null,null,null,1,2,3,4,5]
[null,null,2,3,4,5,6,7,8,null,null,null,null,null,6,7,8,9,10,11,12,"10: Término 2017-1"]
[null,null,9,10,11,12,13,14,15,null,null,null,null,null,13,14,15,16,17,18,19]
[null,null,16,17,18,19,20,21,22,"24: Recesso",null,null,null,null,20,21,22,23,24,25,26]
[null,null,23,24,25,26,27,28,29,"25: Transferência da capital",null,null,null,null,27,28,29,30,31]
[null,null,30,31]
[null,"Dias Semana",null,{"$f":"gfCountIfColor(D37:D41,$B$2)","v":{"$error":"#NAME?"}},{"$f":"gfCountIfColor(E37:E41,$B$2)","v":{"$error":"#NAME?"}},{"$error":"#NAME?"},{"$error":"#NAME?"},{"$f":"gfCountIfColor(H37:H41,$B$2)","v":{"$error":"#NAME?"}},{"$f":"gfCountIfColor(I37:I41,$B$2)","v":{"$error":"#NAME?"}},null,null,null,null,"Dias Semana",null,{"$f":"gfCountIfColor(P37:P41,$B$2)","v":{"$error":"#NAME?"}},{"$f":"gfCountIfColor(Q37:Q41,$B$2)","v":{"$error":"#NAME?"}},{"$f":"gfCountIfColor(R37:R41,$B$2)","v":{"$error":"#NAME?"}},{"$f":"gfCountIfColor(S37:S41,$B$2)","v":{"$error":"#NAME?"}},{"$f":"gfCountIfColor(T37:T41,$B$2)","v":{"$error":"#NAME?"}},{"$f":"gfCountIfColor(U37:U41,$B$2)","v":{"$error":"#NAME?"}}]
[null,"Dias Letivos",null,null,{"$f":"gfCountIfColor(D37:I42,$B$2)","v":{"$error":"#NAME?"}},null,"Total",null,{"$f":"SUM(U31,E44)","v":{"$error":"#NAME?"}},null,null,null,null,"Dias Letivos",null,null,{"$f":"gfCountIfColor(P37:U41,$B$2)","v":{"$error":"#NAME?"}},null,"Parcial",null,{"$f":"Q44+I44","v":{"$error":"#NAME?"}}]
[]
[]
[null,null,null,"Totais de dias da semana 2016-1"]
[null,null,null,null,"Seg","Ter","Qua","Qui","Sex","Sab"]
[null,null,null,null,{"$f":"SUM(D20,P20,D30,P30,D43,P43)","v":{"$error":"#NAME?"}},{"$f":"SUM(E20,Q20,E30,Q30,E43,Q43)","v":{"$error":"#NAME?"}},{"$error":"#NAME?"},{"$error":"#NAME?"},{"$error":"#NAME?"},{"$error":"#NAME?"}]
[]
[]
[null,"Calendário 2017-2 - Regional Goiás"]
[]
[null,"Agosto",null,null,null,null,null,null,null,null,null,null,null,"Setembro"]
[null,"Sem","Dom","Seg","Ter","Qua","Qui","Sex","Sáb",null,null,null,null,"Sem","Dom","Seg","Ter","Qua","Qui","Sex","Sáb"]
[null,null,null,null,1,2,3,4,5,null,null,null,null,null,null,null,null,null,null,1,2]
[null,null,6,7,8,9,10,11,12,null,null,null,null,null,3,4,5,6,7,8,9,"7: Independência do Brasil"]
[null,null,13,14,15,16,17,18,19,null,null,null,null,null,10,11,12,13,14,15,16,"04: Início de 2017-2"]
[null,null,20,21,22,23,24,25,26,null,null,null,null,null,17,18,19,20,21,22,23]
[null,null,27,28,29,30,31,null,null,null,null,null,null,null,24,25,26,27,28,29,30,"27: Espaço das Profissões"]
[]
[null,"Dias Semana",null,{"$f":"gfCountIfColor(D56:D60,$B$2)","v":{"$error":"#NAME?"}},{"$f":"gfCountIfColor(E56:E60,$B$2)","v":{"$error":"#NAME?"}},{"$error":"#NAME?"},{"$f":"gfCountIfColor(G56:G60,$B$2)","v":{"$error":"#NAME?"}},{"$f":"gfCountIfColor(H56:H60,$B$2)","v":{"$error":"#NAME?"}},{"$error":"#NAME?"},null,null,null,null,"Dias Semana",null,{"$f":"gfCountIfColor(P56:P60,$B$2)","v":{"$error":"#NAME?"}},{"$f":"gfCountIfColor(Q56:Q60,$B$2)","v":{"$error":"#NAME?"}},{"$f":"gfCountIfColor(R56:R60,$B$2)","v":{"$error":"#NAME?"}},{"$f":"gfCountIfColor(S56:S60,$B$2)","v":{"$error":"#NAME?"}},{"$f":"gfCountIfColor(T56:T60,$B$2)","v":{"$error":"#NAME?"}},{"$f":"gfCountIfColor(U56:U60,$B$2)","v":{"$error":"#NAME?"}}]
[null,"Dias Letivos",null,null,{"$f":"gfCountIfColor(D56:I60,$B$2)","v":{"$error":"#NAME?"}},null,"Parcial",null,{"$f":"E63","v":{"$error":"#NAME?"}},null,null,null,null,"Dias Letivos",null,null,{"$f":"gfCountIfColor(P56:U60,$B$2)","v":{"$error":"#NAME?"}},null,"Parcial",null,{"$f":"Q63+I63","v":{"$error":"#NAME?"}}]
[]
[null,"Outubro",null,null,null,null,null,null,null,null,null,null,null,"Novembro"]
[null,"Sem","Dom","Seg","Ter","Qua","Qui","Sex","Sáb",null,null,null,null,"Sem","Dom","Seg","Ter","Qua","Qui","Sex","Sáb"]
[null,null,null,null,null,null,null,null,null,null,null,null,null,null,null,null,1,1,2,3,4,"2: Finados"]
[null,null,1,2,3,4,5,6,7,"12: Nsa. Sra. Aparecida",null,null,null,null,5,6,7,8,9,10,11]
[null,null,8,9,10,11,12,13,14,null,null,null,null,null,12,13,14,15,16,17,18,"15: Proclamação da República"]
[null,null,15,16,17,18,19,20,21,null,null,null,null,null,19,20,21,22,23,24,25]
[null,null,22,23,24,25,26,27,28,null,null,null,null,null,26,27,28,29,30]
[null,null,29,30,31,null,null,null,null,"28:  Dia do Serv. Público "]
[null,"Dias Semana",null,{"$f":"gfCountIfColor(D67:D72,$B$2)","v":{"$error":"#NAME?"}},{"$f":"gfCountIfColor(E67:E72,$B$2)","v":{"$error":"#NAME?"}},{"$error":"#NAME?"},{"$error":"#NAME?"},{"$error":"#NAME?"},{"$error":"#NAME?"},null,null,null,null,"Dias Semana",null,{"$f":"gfCountIfColor(P67:P71,$B$2)","v":{"$error":"#NAME?"}},{"$error":"#NAME?"},{"$error":"#NAME?"},{"$error":"#NAME?"},{"$error":"#NAME?"},{"$error":"#NAME?"}]
[null,"Dias Letivos",null,null,{"$f":"gfCountIfColor(D67:I72,$B$2)","v":{"$error":"#NAME?"}},null,"Parcial",null,{"$f":"SUM(U63,E74)","v":{"$error":"#NAME?"}},null,null,null,null,"Dias Letivos",null,null,{"$f":"gfCountIfColor(P67:U71,$B$2)","v":{"$error":"#NAME?"}},null,"Parcial",null,{"$f":"SUM(I74,Q74)","v":{"$error":"#NAME?"}}]
[]
[null,"Dezembro "]
[null,"Sem","Dom","Seg","Ter","Qua","Qui","Sex","Sáb",null,null,null,null,"Totais de dias da semana 2015-2"]
[null,null,null,null,null,null,null,1,2,null,null,null,null,null,"Seg","Ter","Qua","Qui","Sex","Sab"]
[null,null,3,4,5,6,7,8,9,"08: Padroeira do município de Goiás",null,null,null,null,{"$f":"SUM(P62,D73,D84,P73,D95,P95)","v":{"$error":"#NAME?"}},{"$f":"SUM(Q62,E73,E84,Q73,E95,Q95)","v":{"$error":"#NAME?"}},{"$error":"#NAME?"},{"$error":"#NAME?"},{"$error":"#NAME?"},{"$error":"#NAME?"}]
[null,null,10,11,12,13,14,15,16]
[null,null,17,18,19,20,21,22,23]
[null,null,24,25,26,27,28,29,30,"25: Natal"]
[null,null,31]
[null,"Dias Semana",null,{"$f":"gfCountIfColor(D78:D82,$B$2)","v":{"$error":"#NAME?"}},{"$f":"gfCountIfColor(E78:E82,$B$2)","v":{"$error":"#NAME?"}},{"$error":"#NAME?"},{"$f":"gfCountIfColor(G78:G82,$B$2)","v":{"$error":"#NAME?"}},{"$error":"#NAME?"},{"$f":"gfCountIfColor(I78:I82,$B$2)","v":{"$error":"#NAME?"}}]
[null,"Dias Letivos",null,null,{"$f":"gfCountIfColor(D78:I82,$B$2)","v":{"$error":"#NAME?"}},null,"Total",null,{"$f":"SUM(U74,E85)","v":{"$error":"#NAME?"}}]
[]
[]
[null,"2018-01-01",null,null,null,null,null,null,null,null,null,null,null,"2018-02-01"]
[null,"Sem","Dom","Seg","Ter","Qua","Qui","Sex","Sáb",null,null,null,null,"Sem","Dom","Seg","Ter","Qua","Qui","Sex","Sáb"]
[null,null,null,1,2,3,4,5,6,"01: Confraternização universal",null,null,null,null,null,null,null,null,1,2,3]
[null,null,7,8,9,10,11,12,13,null,null,null,null,null,4,5,6,7,8,9,10]
[null,null,14,15,16,17,18,19,20,null,null,null,null,null,11,12,13,14,15,16,17,"13: Carnaval"]
[null,null,21,22,23,24,25,26,27,null,null,null,null,null,18,19,20,21,22,23,24]
[null,null,28,29,30,31,null,null,null,"30: Término 2017-2",null,null,null,null,25,26,27,28]
[null,"Dias Semana",null,{"$f":"gfCountIfColor(D90:D94,$B$2)","v":{"$error":"#NAME?"}},{"$f":"gfCountIfColor(E90:E94,$B$2)","v":{"$error":"#NAME?"}},{"$error":"#NAME?"},{"$error":"#NAME?"},{"$f":"gfCountIfColor(H90:H94,$B$2)","v":{"$error":"#NAME?"}},{"$error":"#NAME?"},null,null,null,null,"Dias Semana",null,{"$f":"gfCountIfColor(P90:P94,$B$2)","v":{"$error":"#NAME?"}},{"$error":"#NAME?"},{"$error":"#NAME?"},{"$error":"#NAME?"},{"$f":"gfCountIfColor(T90:T94,$B$2)","v":{"$error":"#NAME?"}},{"$error":"#NAME?"}]
[null,"Dias Letivos",null,null,{"$f":"gfCountIfColor(D89:I94,$B$2)","v":{"$error":"#NAME?"}},null,"Total",null,{"$f":"SUM(I85,E96)","v":{"$error":"#NAME?"}},null,null,null,null,"Dias Letivos",null,null,{"$f":"gfCountIfColor(P89:U93,$B$2)","v":{"$error":"#NAME?"}},null,"Total",null,{"$f":"SUM(I96,Q96)","v":{"$error":"#NAME?"}}]
[]
[]
[null,"2018-03-01"]
[null,"Sem","Dom","Seg","Ter","Qua","Qui","Sex","Sáb"]
[null,null,null,null,null,null,1,2,3]
[null,null,4,5,6,7,8,9,10,"12: Início 2018-1"]
[null,null,11,12,13,14,15,16,17]
[null,null,18,19,20,21,22,23,24]
[null,null,25,26,27,28,29,30,31]
[]
[]
[null,"Número de dias úteis para procedimentos para matrícula"]
[null,3,"Consolidação"]
[null,1,"Rotinas cercomp"]
[null,2,"Matrículas veteranos"]
[null,1,"Rotinas cercomp"]
[null,1,"Matrícula livre"]
[null,2,"Solicitação de acréscimo e cancelamento on line à coordenação"]

{"sheet":"RJataí","index":6,"n_rows":104,"n_cols":28,"rows_kept":104,"cut":false,"hidden":false,"merged":[[19,23,19,24],[20,23,20,24],[18,23,18,24],[16,23,16,25],[17,23,17,24],[84,1,84,8],[84,13,84,20],[95,1,95,8],[34,13,34,20],[61,1,61,8],[61,13,61,20],[72,1,72,8],[73,13,73,20],[66,9,66,10],[45,1,45,8],[58,1,58,22],[45,14,45,21],[0,1,0,22],[2,1,2,8],[2,13,2,20],[11,1,11,8],[11,13,11,20],[22,1,22,8],[22,13,22,20],[27,21,27,22],[34,1,34,8],[43,6,43,7],[25,21,25,22]]}
[null,"Calendário 2017-1 - Regional Jataí"]
[]
[null,"Janeiro",null,null,null,null,null,null,null,null,null,null,null,"Fevereiro"]
[null,"Sem","Dom","Seg","Ter","Qua","Qui","Sex","Sáb",null,null,null,null,"Sem","Dom","Seg","Ter","Qua","Qui","Sex","Sáb"]
[null,null,1,2,3,4,5,6,7,"01: Confraternização universal",null,null,null,null,null,null,null,1,2,3,4]
[null,null,8,9,10,11,12,13,14,null,null,null,null,null,5,6,7,8,9,10,11]
[null,null,15,16,17,18,19,20,21,null,null,null,null,null,12,13,14,15,16,17,18]
[null,null,22,23,24,25,26,27,28,null,null,null,null,null,19,20,21,22,23,24,25]
[null,null,29,30,31,null,null,null,null,null,null,null,null,null,26,27,28,null,null,null,null,"28: Carnaval"]
[]
[]
[null,"Março",null,null,null,null,null,null,null,null,null,null,null,"Abril"]
[null,"Sem","Dom","Seg","Ter","Qua","Qui","Sex","Sáb",null,null,null,null,"Sem","Dom","Seg","Ter","Qua","Qui","Sex","Sáb"]
[null,null,null,null,null,1,2,3,4,null,null,null,null,null,null,null,null,null,null,null,1,null,"Consolidação 2016-2"]
[null,null,5,6,7,8,9,10,11,null,null,null,null,null,2,3,4,5,6,7,8,"08: Término 2016-2"]
[null,null,12,13,14,15,16,17,18,null,null,null,null,null,9,10,11,12,13,14,15,"14: Paixão de Cristo"]
[null,null,19,20,21,22,23,24,25,null,null,null,null,null,16,17,18,19,20,21,22,"21: Tiradentes",null,"Dias possíveis para férias "]
[null,null,26,27,28,29,30,31,null,null,null,null,null,null,23,24,25,26,27,28,29,"15 e 22: Recesso",null,"Janeiro/2017",null,14]
[null,null,null,null,null,null,null,null,null,null,null,null,null,null,30,null,null,null,null,null,null,null,null,"Abril/2017",null,19]
[null,"Dias Semana",null,{"$f":"gfCountIfColor(D15:D18,$B$2)","v":{"$error":"#NAME?"}},{"$f":"gfCountIfColor(E15:E18,$B$2)","v":{"$error":"#NAME?"}},{"$f":"gfCountIfColor(F15:F18,$B$2)","v":{"$error":"#NAME?"}},{"$error":"#NAME?"},{"$error":"#NAME?"},{"$f":"gfCountIfColor(I15:I18,$B$2)","v":{"$error":"#NAME?"}},null,null,null,null,"Dias Semana",null,{"$f":"gfCountIfColor(P15:P18,$B$2)","v":{"$error":"#NAME?"}},{"$f":"gfCountIfColor(Q15:Q18,$B$2)","v":{"$error":"#NAME?"}},{"$error":"#NAME?"},{"$error":"#NAME?"},{"$f":"gfCountIfColor(T14:T18,$B$2)","v":{"$error":"#NAME?"}},{"$f":"gfCountIfColor(U14:U18,$B$2)","v":{"$error":"#NAME?"}},null,null,"Julho/2017",null,15]
[null,"Dias Letivos",null,null,{"$f":"gfCountIfColor(D14:I18,$B$2)","v":{"$error":"#NAME?"}},null,"Parcial",null,{"$f":"SUM(U9,E21)","v":{"$error":"#NAME?"}},null,null,null,null,"Dias Letivos",null,null,{"$f":"gfCountIfColor(P14:U18,$B$2)","v":{"$error":"#NAME?"}},null,"Parcial",null,{"$f":"SUM(E21,Q21)+J4","v":{"$error":"#NAME?"}},null,null,"Set e Out/2017",null,15]
[null,null,null,null,null,null,null,null,null,null,null,null,null,null,null,null,null,null,null,null,null,null,null,null,null,{"$f":"SUM(Z18:Z21)","v":63}]
[null,"Maio",null,null,null,null,null,null,null,null,null,null,null,"Junho"]
[null,"Sem","Dom","Seg","Ter","Qua","Qui","Sex","Sáb",null,null,null,null,"Sem","Dom","Seg","Ter","Qua","Qui","Sex","Sáb"]
[null,null,null,1,2,3,4,5,6,"1: Dia do Trabalho",null,null,null,null,null,null,null,null,1,2,3]
[null,null,7,8,9,10,11,12,13,"2: Início 2017-1",null,null,null,null,4,5,6,7,8,9,10,"8 de junho - Seminários acessibilidade "]
[null,null,14,15,16,17,18,19,20,"10: Espaço das Profissões",null,null,null,null,11,12,13,14,15,16,17,"15: Corpus Christi"]
[null,null,21,22,23,24,25,26,27,null,null,null,null,null,18,19,20,21,22,23,24]
[null,null,28,29,30,31,null,null,null,"31: Aniversário de Jataí",null,null,null,null,25,26,27,28,29,30]
[null,"Dias Semana",null,{"$f":"gfCountIfColor(D25:D29,$B$2)","v":{"$error":"#NAME?"}},{"$f":"gfCountIfColor(E25:E29,$B$2)","v":{"$error":"#NAME?"}},{"$f":"gfCountIfColor(F25:F29,$B$2)","v":{"$error":"#NAME?"}},{"$f":"gfCountIfColor(G25:G29,$B$2)","v":{"$error":"#NAME?"}},{"$error":"#NAME?"},{"$error":"#NAME?"},null,null,null,null,"Dias Semana",null,{"$f":"gfCountIfColor(P25:P29,$B$2)","v":{"$error":"#NAME?"}},{"$f":"gfCountIfColor(Q25:Q29,$B$2)","v":{"$error":"#NAME?"}},{"$error":"#NAME?"},{"$error":"#NAME?"},{"$error":"#NAME?"},{"$error":"#NAME?"}]
[null,"Dias Letivos",null,null,{"$f":"gfCountIfColor(D25:I29,$B$2)","v":{"$error":"#NAME?"}},null,"Parcial",null,{"$f":"SUM(U21,E31)","v":{"$error":"#NAME?"}},null,null,null,null,"Dias Letivos",null,null,{"$f":"gfCountIfColor(P25:U29,$B$2)","v":{"$error":"#NAME?"}},null,"Parcial",null,{"$f":"SUM(I31,Q31)","v":{"$error":"#NAME?"}}]
[]
[]
[]
[null,"Julho",null,null,null,null,null,null,null,null,null,null,null,"Agosto"]
[null,"Sem","Dom","Seg","Ter","Qua","Qui","Sex","Sáb",null,null,null,null,"Sem","Dom","Seg","Ter","Qua","Qui","Sex","Sáb"]
[null,null,null,null,null,null,null,null,1,null,null,null,null,null,null,null,1,2,3,4,5]
[null,null,2,3,4,5,6,7,8,null,null,null,null,null,6,7,8,9,10,11,12]
[null,null,9,10,11,12,13,14,15,null,null,null,null,null,13,14,15,16,17,18,19]
[null,null,16,17,18,19,20,21,22,null,null,null,null,null,20,21,22,23,24,25,26]
[null,null,23,24,25,26,27,28,29,null,null,null,null,null,27,28,29,30,31]
[null,null,30,31]
[null,"Dias Semana",null,{"$f":"gfCountIfColor(D37:D42,$B$2)","v":{"$error":"#NAME?"}},{"$f":"gfCountIfColor(E37:E41,$B$2)","v":{"$error":"#NAME?"}},{"$error":"#NAME?"},{"$error":"#NAME?"},{"$f":"gfCountIfColor(H37:H41,$B$2)","v":{"$error":"#NAME?"}},{"$f":"gfCountIfColor(I37:I41,$B$2)","v":{"$error":"#NAME?"}},null,null,null,null,"Dias Semana",null,{"$f":"gfCountIfColor(P37:P41,$B$2)","v":{"$error":"#NAME?"}},{"$f":"gfCountIfColor(Q37:Q41,$B$2)","v":{"$error":"#NAME?"}},{"$error":"#NAME?"},{"$f":"gfCountIfColor(S37:S41,$B$2)","v":{"$error":"#NAME?"}},{"$f":"gfCountIfColor(T37:T41,$B$2)","v":{"$error":"#NAME?"}},{"$f":"gfCountIfColor(U37:U41,$B$2)","v":{"$error":"#NAME?"}}]
[null,"Dias Letivos",null,null,{"$f":"gfCountIfColor(D37:I41,$B$2)","v":{"$error":"#NAME?"}},null,"Total",null,{"$f":"SUM(U31,E44)","v":{"$error":"#NAME?"}},null,null,null,null,"Dias Letivos",null,null,{"$f":"gfCountIfColor(P37:U41,$B$2)","v":{"$error":"#NAME?"}},null,"Parcial",null,{"$f":"Q44+I44","v":{"$error":"#NAME?"}}]
[]
[null,"Setembro",null,null,null,null,null,null,null,null,null,null,null,null,"Totais de dias da semana 2017-1"]
[null,"Sem","Dom","Seg","Ter","Qua","Qui","Sex","Sáb",null,null,null,null,null,null,"Seg","Ter","Qua","Qui","Sex","Sab"]
[null,null,null,null,null,null,null,1,2,null,null,null,null,null,null,{"$f":"SUM(P43,P20,D30,P30,D43,D54)","v":{"$error":"#NAME?"}},{"$f":"SUM(Q43,Q20,E30,Q30,E43,E54)","v":{"$error":"#NAME?"}},{"$error":"#NAME?"},{"$error":"#NAME?"},{"$error":"#NAME?"},{"$error":"#NAME?"}]
[null,null,3,4,5,6,7,8,9,"7: Independência do Brasil",null,null,null,null,null,null,null,null,null,null,null,null,null,null,null,null,"Número de dias utéis para procedimentos da matrícula "]
[null,null,10,11,12,13,14,15,16,"14: Término 2017-1",null,null,null,null,null,null,null,null,null,null,null,"15 a 19/09/17","Consolidação 2017-1",null,null,null,3,"Consolidação"]
[null,null,17,18,19,20,21,22,23,null,null,"Consolidação 2017-1",null,null,null,null,null,null,null,null,null,"20 e 21/09/17","Rotinas cercomp",null,null,null,2,"Rotinas cercomp"]
[null,null,24,25,26,27,28,29,30,null,null,null,null,null,null,null,null,null,null,null,null,"22 a 26/09/17","Matrículas veteranos",null,null,null,3,"Matrículas veteranos"]
[null,null,null,null,null,null,null,null,null,null,null,null,null,null,null,null,null,null,null,null,null,"27 e 28/09/17","Rotinas cercomp",null,null,null,2,"Rotinas cercomp"]
[null,"Dias Semana",null,{"$f":"gfCountIfColor(D48:D52,$B$2)","v":{"$error":"#NAME?"}},{"$f":"gfCountIfColor(E48:E52,$B$2)","v":{"$error":"#NAME?"}},{"$f":"gfCountIfColor(F48:F52,$B$2)","v":{"$error":"#NAME?"}},{"$f":"gfCountIfColor(G48:G52,$B$2)","v":{"$error":"#NAME?"}},{"$f":"gfCountIfColor(H48:H52,$B$2)","v":{"$error":"#NAME?"}},{"$f":"gfCountIfColor(I48:I52,$B$2)","v":{"$error":"#NAME?"}},null,null,null,null,null,null,null,null,null,null,null,null,"29/09 a 04/10/17","Solicitação de acréscimo 1ª etapa",null,null,null,4,"Solicitação de acréscimo 1ª etapa"]
[null,"Dias Letivos",null,null,{"$f":"gfCountIfColor(D48:I52,$B$2)","v":{"$error":"#NAME?"}},null,"Parcial",null,{"$f":"E55+U44","v":{"$error":"#NAME?"}},null,null,null,null,null,null,null,null,null,null,null,null,"05 e 06/10/17","Análise da solicitação de acréscimo 1ª etapa",null,null,null,2,"Análise da solicitação de acréscimo 1ª etapa"]
[null,null,null,null,null,null,null,null,null,null,null,null,null,null,null,null,null,null,null,null,null,"09 a 11/10/17","Solicitação de acréscimo 2ª etapa",null,null,null,3,"Solicitação de acréscimo 2ª etapa"]
[null,null,null,null,null,null,null,null,null,null,null,null,null,null,null,null,null,null,null,null,null,"13 e 16/05/17","Análise da solicitação de acréscimo 2ª etapa",null,null,null,2,"Análise da solicitação de acréscimo 2ª etapa"]
[]
[null,"Calendário 2017-2 - Regional Jataí"]
[]
[]
[null,"Outubro",null,null,null,null,null,null,null,null,null,null,null,"Novembro"]
[null,"Sem","Dom","Seg","Ter","Qua","Qui","Sex","Sáb",null,null,null,null,"Sem","Dom","Seg","Ter","Qua","Qui","Sex","Sáb"]
[null,null,null,null,null,null,null,null,null,null,null,null,null,null,null,null,1,1,2,3,4,"2: Finados"]
[null,null,1,2,3,4,5,6,7,"05: Início 2017-2",null,null,null,null,5,6,7,8,9,10,11]
[null,null,8,9,10,11,12,13,14,"12: Nsa. Sra. Aparecida",null,null,null,null,12,13,14,15,16,17,18,"15: Proclamação da República"]
[null,null,15,16,17,18,19,20,21,"16 a 18: Conepe",null,null,null,null,19,20,21,22,23,24,25]
[null,null,22,23,24,25,26,27,28,null,null,null,null,null,26,27,28,29,30]
[null,null,29,30,31,null,null,null,null,"28:  Dia do Serv. Público "]
[null,"Dias Semana",null,{"$f":"gfCountIfColor(D64:D69,$B$2)","v":{"$error":"#NAME?"}},{"$f":"gfCountIfColor(E64:E69,$B$2)","v":{"$error":"#NAME?"}},{"$error":"#NAME?"},{"$error":"#NAME?"},{"$error":"#NAME?"},{"$error":"#NAME?"},null,null,null,null,"Dias Semana",null,{"$f":"gfCountIfColor(P64:P68,$B$2)","v":{"$error":"#NAME?"}},{"$error":"#NAME?"},{"$error":"#NAME?"},{"$error":"#NAME?"},{"$error":"#NAME?"},{"$error":"#NAME?"}]
[null,"Dias Letivos",null,null,{"$f":"gfCountIfColor(D64:I69,$B$2)","v":{"$error":"#NAME?"}},null,"Parcial",null,{"$f":"E71","v":{"$error":"#NAME?"}},null,null,null,null,"Dias Letivos",null,null,{"$f":"gfCountIfColor(P64:U68,$B$2)","v":{"$error":"#NAME?"}},null,"Parcial",null,{"$f":"SUM(I71,Q71)","v":{"$error":"#NAME?"}}]
[]
[null,"Dezembro "]
[null,"Sem","Dom","Seg","Ter","Qua","Qui","Sex","Sáb",null,null,null,null,"Totais de dias da semana 2017-2"]
[null,null,null,null,null,null,null,1,2,null,null,null,null,null,"Seg","Ter","Qua","Qui","Sex","Sab"]
[null,null,3,4,5,6,7,8,9,null,null,null,null,null,{"$f":"SUM(D70,D81,P70,D92,P92,D103)","v":{"$error":"#NAME?"}},{"$f":"SUM(E70,E81,Q70,E92,Q92,E103)","v":{"$error":"#NAME?"}},{"$error":"#NAME?"},{"$error":"#NAME?"},{"$error":"#NAME?"},{"$error":"#NAME?"}]
[null,null,10,11,12,13,14,15,16]
[null,null,17,18,19,20,21,22,23]
[null,null,24,25,26,27,28,29,30,"25: Natal"]
[null,null,31,null,null,null,null,null,null,null,null,null,null,null,null,null,null,null,null," "]
[null,"Dias Semana",null,{"$f":"gfCountIfColor(D75:D79,$B$2)","v":{"$error":"#NAME?"}},{"$f":"gfCountIfColor(E75:E79,$B$2)","v":{"$error":"#NAME?"}},{"$error":"#NAME?"},{"$f":"gfCountIfColor(G75:G79,$B$2)","v":{"$error":"#NAME?"}},{"$error":"#NAME?"},{"$f":"gfCountIfColor(I75:I79,$B$2)","v":{"$error":"#NAME?"}}]
[null,"Dias Letivos",null,null,{"$f":"gfCountIfColor(D75:I79,$B$2)","v":{"$error":"#NAME?"}},null,"Total",null,{"$f":"SUM(U71,E82)","v":{"$error":"#NAME?"}}]
[]
[]
[null,"2018-01-01",null,null,null,null,null,null,null,null,null,null,null,"2018-02-01"]
[null,"Sem","Dom","Seg","Ter","Qua","Qui","Sex","Sáb",null,null,null,null,"Sem","Dom","Seg","Ter","Qua","Qui","Sex","Sáb"]
[null,null,null,1,2,3,4,5,6,"01: Confraternização universal",null,null,null,null,null,null,null,null,1,2,3]
[null,null,7,8,9,10,11,12,13,null,null,null,null,null,4,5,6,7,8,9,10]
[null,null,14,15,16,17,18,19,20,null,null,null,null,null,11,12,13,14,15,16,17,"13: Carnaval"]
[null,null,21,22,23,24,25,26,27,null,null,null,null,null,18,19,20,21,22,23,24]
[null,null,28,29,30,31,null,null,null,null,null,null,null,null,25,26,27,28]
[null,"Dias Semana",null,{"$f":"gfCountIfColor(D87:D91,$B$2)","v":{"$error":"#NAME?"}},{"$f":"gfCountIfColor(E87:E91,$B$2)","v":{"$error":"#NAME?"}},{"$error":"#NAME?"},{"$error":"#NAME?"},{"$error":"#NAME?"},{"$error":"#NAME?"},null,null,null,null,"Dias Semana",null,{"$f":"gfCountIfColor(P87:P91,$B$2)","v":{"$error":"#NAME?"}},{"$error":"#NAME?"},{"$f":"gfCountIfColor(R87:R91,$B$2)","v":{"$error":"#NAME?"}},{"$f":"gfCountIfColor(S87:S91,$B$2)","v":{"$error":"#NAME?"}},{"$error":"#NAME?"},{"$error":"#NAME?"}]
[null,"Dias Letivos",null,null,{"$f":"gfCountIfColor(D87:I91,$B$2)","v":{"$error":"#NAME?"}},null,"Total",null,{"$f":"SUM(I82,E93)","v":{"$error":"#NAME?"}},null,null,null,null,"Dias Letivos",null,null,{"$f":"gfCountIfColor(P86:U91,$B$2)","v":{"$error":"#NAME?"}},null,"Total",null,{"$f":"SUM(I93,Q93)","v":{"$error":"#NAME?"}}]
[]
[]
[null,"2018-03-01",null,null,null,null,null,null,null,null,null,null,null,null,null,null,null,null,null,null,null,null,null,null,null,null,"Número de dias utéis para procedimentos da matrícula "]
[null,"Sem","Dom","Seg","Ter","Qua","Qui","Sex","Sáb",null,null,null,null,null,null,null,null,null,null,null,null,"07 a 09/03/18","Consolidação 2017-2",null,null,null,3,"Consolidação"]
[null,null,null,null,null,null,1,2,3,null,null,null,null,null,null,null,null,null,null,null,null,"12 e 13/03/18","Rotinas cercomp",null,null,null,2,"Rotinas cercomp"]
[null,null,4,5,6,7,8,9,10,"6: Término de 2017-2",null,null,null,null,null,null,null,null,null,null,null,"14 a 16/03/18","Matrículas veteranos",null,null,null,3,"Matrículas veteranos"]
[null,null,11,12,13,14,15,16,17,null,null,null,null,null,null,null,null,null,null,null,null,"19 e 20/03/18","Rotinas cercomp",null,null,null,2,"Rotinas cercomp"]
[null,null,18,19,20,21,22,23,24,"21: Início 2018-1",null,null,null,null,null,null,null,null,null,null,null,"21 a 26/03/18","Solicitação de acréscimo 1ª etapa",null,null,null,4,"Solicitação de acréscimo 1ª etapa"]
[null,null,25,26,27,28,29,30,31,null,null,null,null,null,null,null,null,null,null,null,null,"27 e 28/03/18","Análise da solicitação de acréscimo 1ª etapa",null,null,null,2,"Análise da solicitação de acréscimo 1ª etapa"]
[null,"Dias Semana",null,{"$f":"gfCountIfColor(D98:D102,$B$2)","v":{"$error":"#NAME?"}},{"$error":"#NAME?"},{"$f":"gfCountIfColor(F98:F102,$B$2)","v":{"$error":"#NAME?"}},{"$f":"gfCountIfColor(G98:G102,$B$2)","v":{"$error":"#NAME?"}},{"$error":"#NAME?"},{"$error":"#NAME?"},null,null,null,null,null,null,null,null,null,null,null,null,null,"Solicitação de acréscimo 2ª etapa",null,null,null,3,"Solicitação de acréscimo 2ª etapa"]
[null,"Dias Letivos",null,null,{"$f":"gfCountIfColor(D97:I102,$B$2)","v":{"$error":"#NAME?"}},null,"Total",null,{"$f":"SUM(U93,E104)","v":{"$error":"#NAME?"}},null,null,null,null,null,null,null,null,null,null,null,null,null,"Análise da solicitação de acréscimo 2ª etapa",null,null,null,2,"Análise da solicitação de acréscimo 2ª etapa"]

{"sheet":"Resumo","index":7,"n_rows":23,"n_cols":12,"rows_kept":23,"cut":false,"hidden":false,"merged":[]}
[]
[]
[]
[]
[null,null,"Início ",null,"Término","n˚ Dias Letivos",null,"Início ",null,"Término","n˚ Dias Letivos","Início"]
[null,null,"2017-1","Recesso","2017-1","2017-1","Recesso","2017-2","Recesso","2017-2","2017-2","2018-1"]
[null,"Regional Catalão"]
[null,"Regional Goiânia"]
[null,"Goiânia","2017-03-09",null,"2017-07-13",100,"11/07 a 13/08/17","2017-08-14",null,"2017-12-14",100,"2018-03-12"]
[null,"Aparecida de Goiânia","2017-03-09",null,"2017-07-13",100,"11/07 a 13/08/17","2017-08-14",null,"2017-12-18",100,"2018-03-12"]
[null," Regional Goiás"]
[null,"Regional Jataí","2017-05-02","17 a 30/07/17","2017-09-14",100,"15/09 a 04/10/17","2017-10-05","17/12/17 a 14/01/18","2018-03-06",100,"2018-03-21"]
[null,"* As datas acima podem sofrer pequenas alterações após a elaboração da proposta de Resolução com o Calendário Acadêmico 2017 a ser aprovado pela Câmara Superior de Graduação "]
[null,"e o Conselho de Ensino, Pesquisa, Extensão e Cultura."]
[]
[]
[]
[null,null,null,null,"Espaço das Profissões ","CONPEEX **"]
[null,null,"Catalão"]
[null,null,"Goiânia",null,"19 e 20/06/17","16 a 18/10/17"]
[null,null,"Goiás"]
[null,null,"Jataí",null,"2017-05-10","16 a 18/10/17"]
[null,null,null,null,"** Dias Letivos"]